Workbook

Sheet Resumo do Orçamento
C2: Obra: | D2: Bancos | E2: B.D.I. | H2: Encargos Sociais
B3: PROJETO EXECUTIVO PARA A COMPLEMENTAÇÃO DOS ESTUDOS PRELIMINARES E CONSOLIDAÇÃO DO PROJETO RODOVIÁRIO DO RAMAL DO MANGA, NO ESTADO DO AMAPÁ | D3: SINAPI - 09/2023 - Amapá SBC - 11/2023 - Amapá SICRO3 - 07/2023 - Amapá ORSE - 09/2023 - Sergipe | E3: Padrão | F3: ='BDI - Padrão'!E19 -> 0.2093 | H3: Desonerado: embutido nos preços unitário dos insumos de mão de obra, de acordo com as bases.
C4: DATA BASE: NOV/2023 | E4: Material | F4: ='BDI - Material'!E19 -> 0.1415
B5: Planilha Orçamentária Resumida
B6: Item | C6: Descrição | I6: Total | J6: Peso (%)
B7: 1 | C7: SERVIÇOS PRELIMINARES | I7: =Orçamento!I8 -> 752968.7876 | J7: =I7/$I$17 -> 0.05827066373
B8: 2 | C8: ADMINISTRAÇÃO LOCAL | I8: =Orçamento!I19 -> 896462.676 | J8: =I8/$I$17 -> 0.0693753526
B9: 3 | C9: MOBILIZAÇÃO E DESMOBILIZAÇÃO | I9: =Orçamento!I21 -> 470887.0535 | J9: 0.03644095426
B10: 4 | C10: TERRAPLANAGEM | I10: =Orçamento!I23 -> 2205834.4 | J10: 0.1707048641
B11: 5 | C11: PAVIMENTAÇÃO | I11: =Orçamento!I29 -> 6500844.821 | J11: 0.5030866468
B12: 6 | C12: RECAPEAMENTO - BR-156 | I12: =Orçamento!I51 -> 396682.7057 | J12: 0.03069843655
B13: 7 | C13: DRENAGEM SUPERFICIAL | I13: =Orçamento!I60 -> 492247.1774 | J13: 0.03809396912
B14: 8 | C14: PASSEIO PÚBLICO | I14: =Orçamento!I71 -> 160029.9718 | J14: 0.01238438144
B15: 9 | C15: SINALIZAÇÃO | I15: =Orçamento!I76 -> 126045.2612 | J15: 0.00975437648
B16: 10 | C16: DRENAGEM PROFUNDA | I16: =Orçamento!I81 -> 919915.9882 | J16: 0.07119035489
B17: Total Geral: | I17: =SUM(I7:I16) -> 12921918.84

Sheet Orçamento
D2: Obra | E2: Bancos | G2: B.D.I. | I2: Encargos Sociais
A3: ='Resumo do Orçamento'!B3 -> PROJETO EXECUTIVO PARA A COMPLEMENTAÇÃO DOS ESTUDOS PRELIMINARES E CONSOLIDAÇÃO DO PROJETO RODOVIÁRIO DO RAMAL DO MANGA, NO ESTADO DO AMAPÁ | E3: ='Resumo do Orçamento'!D3 -> SINAPI - 09/2023 - Amapá SBC - 11/2023 - Amapá SICRO3 - 07/2023 - Amapá ORSE - 09/2023 - Sergipe | G3: Padrão: | H3: ='BDI - Padrão'!E19 -> 0.2093 | I3: Desonerado: embutido nos preços unitário dos insumos de mão de obra, de acordo com as bases.
G4: Material: | H4: ='BDI - Material'!E19 -> 0.1415
A5: ='Resumo do Orçamento'!C4 -> DATA BASE: NOV/2023
A6: Orçamento Sintético
A7: Item | B7: Código | C7: Banco | D7: Descrição | E7: Und | F7: Quant. | G7: Valor Unit | H7: Valor Unit com BDI | I7: Total | J7: Peso (%)
A8: 1 | D8: SERVIÇOS PRELIMINARES | I8: =SUM(I9:I18) -> 752968.7876 | J8: =SUM(J9:J18) -> 0.05827066373
A9: 1.1 | B9: 74209/001 | C9: Próprio | D9: PLACA DE OBRA EM CHAPA DE ACO GALVANIZADO | E9: m² | F9: 12 | G9: 350.73 | H9: =G9*$H$3+G9 -> 424.137789 | I9: =H9*F9 -> 5089.653468 | J9: =I9/$H$95 -> 0.0003938775293
A10: 1.2 | B10: 042675 | C10: SBC | D10: ALUGUEL MENSAL DE BANHEIRO QUIMICO PADRAO STANDARD COM 3 LIMPEZAS SEMANAIS | E10: UN | F10: 20 | G10: 750 | H10: =G10*$H$3+G10 -> 906.975 | I10: =H10*F10 -> 18139.5 | J10: =I10/$H$95 -> 0.001403777583
A11: 1.3 | B11: 121 | C11: Próprio | D11: CANTEIRO DE OBRA | E11: UND. | F11: 1 | G11: 76350.62 | H11: =G11*$H$3+G11 -> 92330.80477 | I11: =H11*F11 -> 92330.80477 | J11: =I11/$H$95 -> 0.00714528592
A12: 1.4 | B12: 0903810 | C12: SICRO3 | D12: Instalação da usina de asfalto a quente capacidade de 120 t/h | E12: un | F12: 1 | G12: 202055.35 | H12: =G12*$H$3+G12 -> 244345.5348 | I12: =H12*F12 -> 244345.5348 | J12: =I12/$H$95 -> 0.01890938472
A13: 1.5 | B13: 0903808 | C13: SICRO3 | D13: Instalação da usina misturadora de solos com capacidade de 300 t/h | E13: un | F13: 1 | G13: 116444.94 | H13: 140816.8659 | I13: 140816.8659 | J13: 0.01089751976
A14: 1.6 | B14: 5502985 | C14: SICRO3 | D14: Limpeza mecanizada da camada vegetal | E14: m² | F14: 65062.76 | G14: 0.49 | H14: 0.592557 | I14: 38553.39388 | J14: 0.002983565703
A15: 1.7 | B15: 5914655 | C15: SICRO3 | D15: Carga, manobra e descarga de materiais diversos em caminhão carroceria de 15 t - carga e descarga manuais | E15: t | F15: 3220.61 | G15: 31.9 | H15: 38.57667 | I15: 124240.4092 | J15: 0.009614702791
A16: 1.8 | B16: 5914479 | C16: SICRO3 | D16: Transporte com caminhão carroceria de 15 t - rodovia pavimentada | E16: tkm | F16: 50241.52 | G16: 0.71 | H16: 0.858603 | I16: 43137.5198 | J16: 0.003338321523
A17: 1.9 | B17: 5914464 | C17: SICRO3 | D17: Transporte com caminhão carroceria de 15 t - rodovia em revestimento primário | E17: tkm | F17: 10628.01 | G17: 0.91 | H17: 1.100463 | I17: 11695.73177 | J17: 0.0009051079728
A18: 1.10 | B18: 78472 | C18: Próprio | D18: SINAPI - 78472 - SERVICOS TOPOGRAFICOS PARA PAVIMENTACAO, INCLUSIVE NOTA DE SERVICOS, ACOMPANHAMENTO E GREIDE | E18: m² | F18: 65062.76 | G18: 0.44 | H18: 0.532092 | I18: 34619.37409 | J18: 0.002679120223
A19: 2 | D19: ADMINISTRAÇÃO LOCAL | I19: =I20 -> 896462.676 | J19: =J20 -> 0.0693753526
A20: 2.1 | B20: 00000005 | C20: Próprio | D20: ADMINISTRAÇÃO DE OBRA | E20: MÊS | F20: 10 | G20: 74130.71 | H20: =G20*$H$3+G20 -> 89646.2676 | I20: =H20*F20 -> 896462.676 | J20: =I20/$H$95 -> 0.0693753526
A21: 3 | D21: MOBILIZAÇÃO E DESMOBIOLIZAÇÃO | I21: =I22 -> 470887.0535 | J21: =J22 -> 0.03644095426
A22: 3.1 | B22: 101 | C22: Próprio | D22: MOBILIZAÇÃO E DESMOBILIZAÇÃO DE PESSOAL, VEÍCULOS E EQUIPAMENTOS | E22: Unid | F22: 2 | G22: 194694.06 | H22: =G22*$H$3+G22 -> 235443.5268 | I22: =H22*F22 -> 470887.0535 | J22: =I22/$H$95 -> 0.03644095426
A23: 4 | D23: TERRAPLANAGEM | I23: =SUM(I24:I28) -> 2205834.4 | J23: =SUM(J24:J28) -> 0.1707048641
A24: 4.1 | B24: 5501886 | C24: SICRO3 | D24: Escavação, carga e transporte de material de 1ª categoria - DMT de 2.500 a 3.000 m - caminho de serviço em leito natural -com carregadeira e caminhão basculante de 14 m³ | E24: m³ | F24: 89518.94 | G24: 15.15 | H24: =G24*$H$3+G24 -> 18.320895 | I24: =H24*F24 -> 1640067.1 | J24: =I24/$H$95 -> 0.126921328
A25: 4.2 | B25: 4016096 | C25: SICRO3 | D25: Escavação e carga de material de jazida com escavadeira hidráulica de 1,56 m³ | E25: m³ | F25: 1054.03 | G25: 1.53 | H25: =G25*$H$3+G25 -> 1.850229 | I25: =H25*F25 -> 1950.196873 | J25: =I25/$H$95 -> 0.0001509216159
A26: 4.3 | B26: 5915321 | C26: SICRO3 | D26: Transporte com caminhão basculante de 14 m³ - rodovia pavimentada | E26: tkm | F26: 21375.73 | G26: 0.56 | H26: 0.677208 | I26: 14475.81536 | J26: 0.001120252769
A27: 4.4 | B27: 5915320 | C27: SICRO3 | D27: Transporte com caminhão basculante de 14 m³ - rodovia em revestimento primário | E27: tkm | F27: 4521.79 | G27: 0.71 | H27: 0.858603 | I27: 3882.422459 | J27: 0.000300452472
A28: 4.5 | B28: 5502978 | C28: SICRO3 | D28: Compactação de aterros a 100% do Proctor normal | E28: m³ | F28: 90572.97 | G28: 4.98 | H28: 6.022314 | I28: 545458.8653 | J28: 0.04221190923
A29: 5 | D29: PAVIMENTAÇÃO | I29: =I30+I34+I38 -> 6500844.821 | J29: =J30+J34+J38 -> 0.5030866468
A30: 5.1 | D30: SUBBASE | I30: =SUM(I31:I33) -> 467580.1351 | J30: =SUM(J31:J33) -> 0.03618503883
A31: 5.1.1 | B31: 4011228 | C31: SICRO3 | D31: Sub-base estabilizada granulometricamente com mistura de solos na pista com material de jazida | E31: m³ | F31: 8737.41 | G31: 12.8 | H31: =G31*$H$3+G31 -> 15.47904 | I31: =H31*F31 -> 135246.7189 | J31: =I31/$H$95 -> 0.01046645785
A32: 5.1.2 | B32: 5914389 | C32: SICRO3 | D32: Transporte com caminhão basculante de 10 m³ - rodovia pavimentada | E32: tkm | F32: 281195.68 | G32: 0.77 | H32: 0.931161 | I32: =H32*F32 -> 261838.4506 | J32: 0.02026312452
A33: 5.1.3 | B33: 5914374 | C33: SICRO3 | D33: Transporte com caminhão basculante de 10 m³ - rodovia em revestimento primário | E33: tkm | F33: 59483.7 | G33: 0.98 | H33: 1.185114 | I33: 70494.96564 | J33: 0.005455456461
A34: 5.2 | D34: BASE | I34: =SUM(I35:I37) -> 650466.3569 | J34: =SUM(J35:J37) -> 0.05033821717
A35: 5.2.1 | B35: 4011226 | C35: SICRO3 | D35: Base estabilizada granulometricamente com mistura solo areia (70% - 30%) em usina com material de jazida e areia extraída | E35: m³ | F35: 8636.22 | G35: 30.83 | H35: 37.282719 | I35: =H35*F35 -> 321981.7635 | J35: 0.02491748845
A36: 5.2.2 | B36: 5914389 | C36: SICRO3 | D36: Transporte com caminhão basculante de 10 m³ - rodovia pavimentada | E36: tkm | F36: 277939.09 | G36: 0.77 | H36: 0.931161 | I36: =H36*F36 -> 258806.041 | J36: 0.02002845275
A37: 5.2.3 | B37: 5914374 | C37: SICRO3 | D37: Transporte com caminhão basculante de 10 m³ - rodovia em revestimento primário | E37: tkm | F37: 58794.81 | G37: 0.98 | H37: 1.185114 | I37: 69678.55246 | J37: 0.00539227597
A38: 5.3 | D38: CBUQ | I38: =SUM(I39:I50) -> 5382798.329 | J38: =SUM(J39:J50) -> 0.4165633908
A39: 5.3.1 | B39: 4011351 | C39: Próprio | D39: SICRO (4011351) - Imprimação com asfalto diluído | E39: m² | F39: 57555.8 | G39: 0.37 | H39: 0.447441 | I39: =H39*F39 -> 25752.82471 | J39: 0.001992956698
A40: 5.3.2 | B40: Cot CM-30 | C40: Próprio | D40: Asfalto diluído CM 30 | E40: KG | F40: 69066.96 | G40: ='Insumos Betuminosos'!M54 -> 6.108935999 | H40: =G40*$H$4+G40 -> 6.973350443 | I40: 481628.1161 | J40: 0.0372721824
A41: 5.3.3 | B41: 5914622 | C41: SICRO3 | D41: Transporte de material betuminoso com caminhão tanque distribuidor - rodovia pavimentada | E41: tkm | F41: 835.71 | G41: 1.75 | H41: 2.116275 | I41: =H41*F41 -> 1768.59218 | J41: 0.0001368676124
A42: 5.3.4 | B42: 5914621 | C42: SICRO3 | D42: Transporte de material betuminoso com caminhão tanque distribuidor - rodovia em revestimento primário | E42: tkm | F42: 227.92 | G42: 2.23 | H42: 2.696739 | I42: =H42*F42 -> 614.6407529 | J42: 4.756574936e-05
A43: 5.3.5 | B43: 4011353 | C43: Próprio | D43: SICRO (4011353) - Pintura de ligação | E43: m² | F43: 57555.8 | G43: 0.28 | H43: 0.338604 | I43: 19488.6241 | J43: 0.001508183447
A44: 5.3.6 | B44: Cot RR-1C | C44: Próprio | D44: EMULSAO ASFALTICA CATIONICA RR-1C PARA USO EM PAVIMENTACAO ASFALTICA | E44: KG | F44: 25900.11 | G44: ='Insumos Betuminosos'!M55 -> 5.059938729 | H44: =G44*$H$4+G44 -> 5.775920059 | I44: 149596.9649 | J44: 0.01157699307
A45: 5.3.7 | B45: 5914622 | C45: SICRO3 | D45: Transporte de material betuminoso com caminhão tanque distribuidor - rodovia pavimentada | E45: tkm | F45: 313.39 | G45: 1.75 | H45: 2.116275 | I45: =H45*F45 -> 663.2194222 | J45: 5.132514995e-05
A46: 5.3.8 | B46: 5914621 | C46: SICRO3 | D46: Transporte de material betuminoso com caminhão tanque distribuidor - rodovia em revestimento primário | E46: tkm | F46: 85.47 | G46: 2.23 | H46: 2.696739 | I46: =H46*F46 -> 230.4902823 | J46: 1.783715601e-05
A47: 5.3.9 | B47: 4011463 | C47: Próprio | D47: SICRO (4011463) - Concreto asfáltico - faixa C - areia e brita comerciais | E47: t | F47: 6763.4 | G47: 231.96 | H47: 280.509228 | I47: 1897196.113 | J47: 0.1468199991
A48: 5.3.10 | B48: Cot CAP | C48: Próprio | D48: CIMENTO ASFALTICO DE PETROLEO A GRANEL (CAP) 50/70 | E48: T | F48: 427.6 | G48: ='Insumos Betuminosos'!L56 -> 5735.17243 | H48: =G48*$H$4+G48 -> 6546.699329 | I48: 2799368.633 | J48: 0.2166372245
A49: 5.3.11 | B49: 5914389 | C49: SICRO3 | D49: Transporte com caminhão basculante de 10 m³ - rodovia pavimentada | E49: tkm | F49: 5173.98 | G49: 0.77 | H49: 0.931161 | I49: =H49*F49 -> 4817.808391 | J49: 0.0003728400131
A50: 5.3.12 | B50: 5914374 | C50: SICRO3 | D50: Transporte com caminhão basculante de 10 m³ - rodovia em revestimento primário | E50: tkm | F50: 1411.09 | G50: 0.98 | H50: 1.185114 | I50: =H50*F50 -> 1672.302514 | J50: 0.0001294159586
A51: 6 | D51: RECAPEAMENTO - BR-156 | I51: =SUM(I52:I59) -> 396682.7057 | J51: =SUM(J52:J59) -> 0.03069843655
A52: 6.1 | B52: 4011353 | C52: Próprio | D52: SICRO (4011353) - Pintura de ligação | E52: m² | F52: 4527.33 | G52: 0.28 | H52: 0.338604 | I52: =H52*F52 -> 1532.972047 | J52: 0.0001186334681
A53: 6.2 | B53: =B44 -> Cot RR-1C | C53: Próprio | D53: =D44 -> EMULSAO ASFALTICA CATIONICA RR-1C PARA USO EM PAVIMENTACAO ASFALTICA | E53: KG | F53: 2037.3 | G53: =G44 -> 5.059938729 | H53: =G53*$H$4+G53 -> 5.775920059 | I53: 11767.28194 | J53: 0.0009106450891
A54: 6.3 | B54: 5914622 | C54: SICRO3 | D54: Transporte de material betuminoso com caminhão tanque distribuidor - rodovia pavimentada | E54: tkm | F54: 24.65 | G54: 1.75 | H54: 2.116275 | I54: =H54*F54 -> 52.16617875 | J54: 4.037030366e-06
A55: 6.4 | B55: 5914621 | C55: SICRO3 | D55: Transporte de material betuminoso com caminhão tanque distribuidor - rodovia em revestimento primário | E55: tkm | F55: 6.72 | G55: 2.23 | H55: 2.696739 | I55: =H55*F55 -> 18.12208608 | J55: 1.402429956e-06
A56: 6.5 | B56: 4011463 | C56: Próprio | D56: SICRO (4011463) - Concreto asfáltico - faixa C - areia e brita comerciais | E56: t | F56: 551.25 | G56: 231.96 | H56: 280.509228 | I56: 154630.7119 | J56: 0.01196654412
A57: 6.6 | B57: Cot CAP | C57: Próprio | D57: CIMENTO ASFALTICO DE PETROLEO A GRANEL (CAP) 50/70 | E57: T | F57: 34.85 | G57: =G48 -> 5735.17243 | H57: =G57*$H$4+G57 -> 6546.699329 | I57: 228152.4716 | J57: 0.01765623778
A58: 6.7 | B58: 5914389 | C58: SICRO3 | D58: Transporte com caminhão basculante de 10 m³ - rodovia pavimentada | E58: tkm | F58: 421.71 | G58: 0.77 | H58: 0.931161 | I58: =H58*F58 -> 392.6799053 | J58: 3.038866828e-05
A59: 6.8 | B59: 5914374 | C59: SICRO3 | D59: Transporte com caminhão basculante de 10 m³ - rodovia em revestimento primário | E59: tkm | F59: 115.01 | G59: 0.98 | H59: 1.185114 | I59: =H59*F59 -> 136.2999611 | J59: 1.054796604e-05
A60: 7 | D60: DRENAGEM SUPERFICIAL | I60: =SUM(I61:I70) -> 492247.1774 | J60: =SUM(J61:J70) -> 0.03809396912
A61: 7.1 | B61: 2003373 | C61: SICRO3 | D61: Meio-fio de concreto - MFC 03 - areia e brita comerciais - fôrma de madeira | E61: m | F61: 1724.29 | G61: 66.6 | H61: 80.53938 | I61: =H61*F61 -> 138873.2475 | J61: 0.01074710724
A62: 7.2 | B62: 2003377 | C62: SICRO3 | D62: Meio-fio de concreto - MFC 05 - areia e brita comerciais - fôrma de madeira | E62: m | F62: 3914.79 | G62: 57.38 | H62: 69.389634 | I62: =H62*F62 -> 271645.8453 | J62: 0.02102209808
A63: 7.3 | B63: 4016096 | C63: SICRO3 | D63: Escavação e carga de material de jazida com escavadeira hidráulica de 1,56 m³ | E63: m³ | F63: 587.22 | G63: 1.53 | H63: 1.850229 | I63: 1086.491473 | J63: 8.408127977e-05
A64: 7.4 | B64: 5901640 | C64: SICRO3 | D64: Transporte com caminhão basculante com caçamba estanque com capacidade de 14 m³ - rodovia pavimentada | E64: tkm | F64: 11908.79 | G64: 0.56 | H64: 0.677208 | I64: =H64*F64 -> 8064.727858 | J64: 0.0006241122512
A65: 7.5 | B65: 5901638 | C65: SICRO3 | D65: Transporte com caminhão basculante com caçamba estanque com capacidade de 14 m³ - rodovia em revestimento primário | E65: tkm | F65: 2519.17 | G65: 0.71 | H65: 0.858603 | I65: 2162.96692 | J65: 0.0001673874403
A66: 7.6 | B66: 4805754 | C66: SICRO3 | D66: Compactação manual com soquete vibratório | E66: m³ | F66: 587.22 | G66: 6.19 | H66: 7.485567 | I66: 4395.674654 | J66: 0.000340171975
A67: 7.7 | B67: 2003385 | C67: SICRO3 | D67: Entrada para descida d’água - EDA 01 - areia e brita comerciais | E67: un | F67: 32 | G67: 69.48 | H67: 84.022164 | I67: 2688.709248 | J67: 0.0002080735285
A68: 7.8 | B68: 2003387 | C68: SICRO3 | D68: Entrada para descida d’água - EDA 02 - areia e brita comerciais | E68: un | F68: 12 | G68: 86.55 | H68: 104.664915 | I68: 1255.97898 | J68: 9.719755984e-05
A69: 7.9 | B69: 2003449 | C69: SICRO3 | D69: Dissipador de energia - DEB 01 - areia, brita e pedra de mão comerciais | E69: un | F69: 44 | G69: 495.06 | H69: 598.676058 | I69: 26341.74655 | J69: 0.002038532115
A70: 7.10 | B70: 2003391 | C70: SICRO3 | D70: Descida d’água de aterros tipo rápido - DAR 02 - areia e brita comerciais | E70: m | F70: 177.74 | G70: 166.24 | H70: 201.034032 | I70: 35731.78885 | J70: 0.002765207651
A71: 8 | D71: PASSEIO PÚBLICO | I71: =SUM(I72:I75) -> 160029.9718 | J71: =SUM(J72:J75) -> 0.01238438144
A72: 8.1 | B72: 4815671 | C72: SICRO3 | D72: Reaterro e compactação com soquete vibratório | E72: m³ | F72: 186.05 | G72: 14.68 | H72: 17.752524 | I72: =H72*F72 -> 3302.85709 | J72: 0.0002556011325
A73: 8.2 | B73: 3108018 | C73: SICRO3 | D73: Guia de madeira de 2,5 x 7,0 cm - confecção e instalação | E73: m | F73: 1819.42 | G73: 4.02 | H73: 4.861386 | I73: =H73*F73 -> 8844.902916 | J73: 0.0006844883507
A74: 8.3 | B74: 1107892 | C74: SICRO3 | D74: Concreto fck = 20 MPa - confecção em betoneira e lançamento manual - areia e brita comerciais | E74: m³ | F74: 124.03 | G74: 569.02 | H74: 688.115886 | I74: 85347.01334 | J74: 0.006604825056
A75: 8.4 | B75: 9418 | C75: Próprio | D75: ORSE-9418 PISO TÁTIL DIRECIONAL E/OU ALERTA, DE CONCRETO, NA COR NATURAL, P/DEFICIENTES VISUAIS, DIMENSÕES 25X25CM, APLICADO COM ARGAMASSA INDUSTRIALIZADA AC-II, REJUNTADO, EXCLUSIVE REGULARIZAÇÃO DE BASE | E75: m² | F75: 429.18 | G75: 120.49 | H75: 145.708557 | I75: 62535.19849 | J75: 0.004839466898
A76: 9 | D76: SINALIZAÇÃO | I76: =SUM(I77:I80) -> 126045.2612 | J76: =SUM(J77:J80) -> 0.00975437648
A77: 9.1 | B77: 5213417 | C77: SICRO3 | D77: Placa em aço nº 16 galvanizado com película retrorrefletiva tipo I + III - confecção | E77: m² | F77: 24.51 | G77: 456.68 | H77: 552.263124 | I77: =H77*F77 -> 13535.96917 | J77: 0.001047520057
A78: 9.2 | B78: 5213351 | C78: SICRO3 | D78: Suporte polimérico ecológico maciço colapsível D = 6,5 cm para placa de sinalização - fornecimento e implantação | E78: un | F78: 43 | G78: 757.06 | H78: 915.512658 | I78: =H78*F78 -> 39367.04429 | J78: 0.00304653239
A79: 9.3 | B79: 5213403 | C79: SICRO3 | D79: Pintura de faixa com tinta acrílica emulsionada em água - espessura de 0,5 mm | E79: m² | F79: 2613.89 | G79: 21.13 | H79: 25.552509 | I79: 66791.44775 | J79: 0.005168849036
A80: 9.4 | B80: 5213407 | C80: SICRO3 | D80: Pintura de setas e zebrados com tinta acrílica emulsionada em água - espessura de 0,5 mm | E80: m² | F80: 156.02 | G80: 33.66 | H80: 40.705038 | I80: 6350.800029 | J80: 0.0004914749973
A81: 10 | D81: DRENAGEM PROFUNDA | I81: =SUM(I82:I93) -> 919915.9882 | J81: =SUM(J82:J93) -> 0.07119035489
A82: 10.1 | B82: 99063 | C82: SINAPI | D82: LOCAÇÃO DE REDE DE ÁGUA OU ESGOTO. AF_10/2018 | E82: M | F82: 774 | G82: 3.8 | H82: 4.59534 | I82: =H82*F82 -> 3556.79316 | J82: 0.0002752527085
A83: 10.2 | B83: 4805757 | C83: SICRO3 | D83: Escavação mecânica de vala em material de 1ª categoria | E83: m³ | F83: 128.2 | G83: 6.95 | H83: 8.404635 | I83: =H83*F83 -> 1077.474207 | J83: 8.338345257e-05
A84: 10.3 | B84: 1106057 | C84: SICRO3 | D84: Concreto magro - confecção em betoneira e lançamento manual - areia e brita comerciais | E84: m³ | F84: 259.17 | G84: 554.16 | H84: 670.145688 | I84: 173681.658 | J84: 0.01344085658
A85: 10.4 | B85: 4011465 | C85: Próprio | D85: Tubo de concreto PA1 comercial para drenagem - D = 0,40 m - fornecimento e instalação | E85: m | F85: 31 | G85: 332.6 | H85: 402.21318 | I85: 12468.60858 | J85: 0.0009649192764
A86: 10.5 | B86: 2003822 | C86: SICRO3 | D86: Tubo de concreto PA1 comercial para drenagem - D = 0,60 m - fornecimento e instalação | E86: m | F86: 11 | G86: 257.91 | H86: 311.890563 | I86: 3430.796193 | J86: 0.0002655020694
A87: 10.6 | B87: 2003830 | C87: SICRO3 | D87: Tubo de concreto PA1 comercial para drenagem - D = 1,00 m - fornecimento e instalação | E87: m | F87: 732 | G87: 593.4 | H87: 717.59862 | I87: 525282.1898 | J87: 0.04065047894
A88: 10.7 | B88: 2003618 | C88: SICRO3 | D88: Boca de lobo simples - BLS 01 - areia e brita comerciais | E88: un | F88: 2 | G88: 965.39 | H88: 1167.446127 | I88: 2334.892254 | J88: 0.0001806923788
A89: 10.8 | B89: 2003620 | C89: SICRO3 | D89: Boca de lobo simples - BLS 02 - areia e brita comerciais | E89: un | F89: 4 | G89: 1190.03 | H89: 1439.103279 | I89: 5756.413116 | J89: 0.0004454766499
A90: 10.9 | B90: 0804377 | C90: SICRO3 | D90: Boca de BSTC D = 0,60 m - esconsidade 0° - areia e brita comerciais - alas esconsas | E90: un | F90: 4 | G90: 1169.24 | H90: 1413.961932 | I90: 5655.847728 | J90: 0.0004376941069
A91: 10.10 | B91: 0804417 | C91: SICRO3 | D91: Boca de BDTC D = 1,00 m - esconsidade 0° - areia e brita comerciais - alas esconsas | E91: un | F91: 30 | G91: 4357.41 | H91: 5269.415913 | I91: 158082.4774 | J91: 0.01223366896
A92: 10.11 | B92: 0804441 | C92: SICRO3 | D92: Boca de BTTC D = 1,00 m - esconsidade 0° - areia e brita comerciais - alas esconsas | E92: un | F92: 4 | G92: 5605.08 | H92: 6778.223244 | I92: 27112.89298 | J92: 0.002098209508
A93: 10.12 | B93: 4815671 | C93: SICRO3 | D93: Reaterro e compactação com soquete vibratório | E93: m³ | F93: 83.14 | G93: 14.68 | H93: 17.752524 | I93: 1475.944845 | J93: 0.0001142202535 | K93: =J81+J76+J71+J60+J51+J29+J23+J21+J19+J8 -> 1
F95: Total Geral: | H95: =I81+I76+I71+I60+I51+I29+I23+I21+I19+I8 -> 12921918.84

Sheet CPU
C1: Composições Analíticas com Preço Unitário | E1: Bancos | G1: B.D.I. | I1: Encargos Sociais
C2: =Orçamento!A3 -> PROJETO EXECUTIVO PARA A COMPLEMENTAÇÃO DOS ESTUDOS PRELIMINARES E CONSOLIDAÇÃO DO PROJETO RODOVIÁRIO DO RAMAL DO MANGA, NO ESTADO DO AMAPÁ | E2: ='Resumo do Orçamento'!D3 -> SINAPI - 09/2023 - Amapá SBC - 11/2023 - Amapá SICRO3 - 07/2023 - Amapá ORSE - 09/2023 - Sergipe | G2: Padrão - 20,93% Material - 14,15% | I2: Desonerado: embutido nos preços unitário dos insumos de mão de obra, de acordo com as bases.
A3: Composições Analíticas com Preço Unitário
A4: Composições Principais
A5: 1.1 | B5: Código | C5: Banco | D5: Descrição | E5: Tipo | G5: Und | H5: Quant. | I5: Valor Unit | J5: Total
A6: Composição | B6: 74209/001 | C6: Próprio | D6: PLACA DE OBRA EM CHAPA DE ACO GALVANIZADO | E6: SEDI - SERVIÇOS DIVERSOS | G6: m² | H6: 1 | I6: 350.73 | J6: 350.73
A7: Composição Auxiliar | B7: 94962 | C7: SINAPI | D7: CONCRETO MAGRO PARA LASTRO, TRAÇO 1:4,5:4,5 (EM MASSA SECA DE CIMENTO/ AREIA MÉDIA/ BRITA 1) - PREPARO MECÂNICO COM BETONEIRA 400 L. AF_05/2021 | E7: FUES - FUNDAÇÕES E ESTRUTURAS | G7: m³ | H7: 0.01 | I7: 531.81 | J7: 5.32
A8: Composição Auxiliar | B8: 88262 | C8: SINAPI | D8: CARPINTEIRO DE FORMAS COM ENCARGOS COMPLEMENTARES | E8: SEDI - SERVIÇOS DIVERSOS | G8: H | H8: 1 | I8: 20.33 | J8: 20.33
A9: Composição Auxiliar | B9: 88316 | C9: SINAPI | D9: SERVENTE COM ENCARGOS COMPLEMENTARES | E9: SEDI - SERVIÇOS DIVERSOS | G9: H | H9: 2 | I9: 15.36 | J9: 30.72
A10: Insumo | B10: 00005075 | C10: SINAPI | D10: PREGO DE ACO POLIDO COM CABECA 18 X 30 (2 3/4 X 10) | E10: Material | G10: KG | H10: 0.11 | I10: 20.34 | J10: 2.24
A11: Insumo | B11: 00004813 | C11: SINAPI | D11: PLACA DE OBRA (PARA CONSTRUCAO CIVIL) EM CHAPA GALVANIZADA *N. 22*, ADESIVADA, DE *2,4 X 1,2* M (SEM POSTES PARA FIXACAO) | E11: Material | G11: m² | H11: 1 | I11: 250 | J11: 250
A12: Insumo | B12: 00004491 | C12: SINAPI | D12: PONTALETE *7,5 X 7,5* CM EM PINUS, MISTA OU EQUIVALENTE DA REGIAO - BRUTA | E12: Material | G12: M | H12: 4 | I12: 9.49 | J12: 37.96
A13: Insumo | B13: 00004417 | C13: SINAPI | D13: SARRAFO NAO APARELHADO *2,5 X 7* CM, EM MACARANDUBA/MASSARANDUBA, ANGELIM, PEROBA-ROSA OU EQUIVALENTE DA REGIAO - BRUTA | E13: Material | G13: M | H13: 1 | I13: 4.16 | J13: 4.16
E14: MO sem LS => | F14: 40.89 | G14: LS => | H14: 0 | I14: MO com LS => | J14: 40.89
E15: Valor do BDI => | F15: 53.08 | H15: Valor com BDI => | J15: 403.81
A17: 1.3 | B17: Código | C17: Banco | D17: Descrição | E17: Tipo | G17: Und | H17: Quant. | I17: Valor Unit | J17: Total
A18: Composição | B18: 121 | C18: Próprio | D18: CANTEIRO DE OBRA | E18: CANT - CANTEIRO DE OBRAS | G18: UND. | H18: 1 | I18: 76350.62 | J18: 76350.62
F19: Custo Horário de Execução => | J19: 0
F20: Fator de Influencia da Chuva - FIC => | J20: 0
F21: Custo do FIC => | J21: 0
F22: Produção de Equipe => | J22: 1
F23: Custo Unitário de Execução => | J23: 0
A24: C | B24: Banco | C24: Código | D24: Material | E24: Quantidade | F24: Unidade | G24: Preço Unitário | J24: Custo Horário
A25: Insumo | B25: SINAPI | C25: 5059 | D25: POSTE DE CONCRETO ARMADO DE SECAO CIRCULAR, EXTENSAO DE 9,00 M, RESISTENCIA DE 300 A 400 DAN, TIPO C-17 | E25: 1 | F25: UN | G25: 1057.23 | J25: 1057.23
F26: Custo Total do Material => | J26: 1057.23
A27: D | B27: Banco | C27: Código | D27: Atividades Auxiliares | E27: Quantidade | F27: Unidade | G27: Preço Unitário | J27: Custo Horário
A28: Atividade Auxiliar | B28: SINAPI | C28: 93584 | D28: EXECUÇÃO DE DEPÓSITO EM CANTEIRO DE OBRA EM CHAPA DE MADEIRA COMPENSADA, NÃO INCLUSO MOBILIÁRIO. AF_04/2016 | E28: 13.8 | F28: m² | G28: 747.52 | J28: 10315.776
A29: Atividade Auxiliar | B29: SINAPI | C29: 93582 | D29: EXECUÇÃO DE CENTRAL DE ARMADURA EM CANTEIRO DE OBRA, NÃO INCLUSO MOBILIÁRIO E EQUIPAMENTOS. AF_04/2016 | E29: 13.8 | F29: m² | G29: 256.03 | J29: 3533.214
A30: Atividade Auxiliar | B30: SINAPI | C30: 93210 | D30: EXECUÇÃO DE REFEITÓRIO EM CANTEIRO DE OBRA EM CHAPA DE MADEIRA COMPENSADA, NÃO INCLUSO MOBILIÁRIO E EQUIPAMENTOS. AF_02/2016 | E30: 13.8 | F30: m² | G30: 532.84 | J30: 7353.192
A31: Atividade Auxiliar | B31: SINAPI | C31: 93212 | D31: EXECUÇÃO DE SANITÁRIO E VESTIÁRIO EM CANTEIRO DE OBRA EM CHAPA DE MADEIRA COMPENSADA, NÃO INCLUSO MOBILIÁRIO. AF_02/2016 | E31: 27.6 | F31: m² | G31: 885.74 | J31: 24446.424
A32: Atividade Auxiliar | B32: SINAPI | C32: 86931 | D32: VASO SANITÁRIO SIFONADO COM CAIXA ACOPLADA LOUÇA BRANCA, INCLUSO ENGATE FLEXÍVEL EM PLÁSTICO BRANCO, 1/2 X 40CM - FORNECIMENTO E INSTALAÇÃO. AF_01/2020 | E32: 8 | F32: UN | G32: 472.47 | J32: 3779.76
A33: Atividade Auxiliar | B33: Próprio | C33: 74209/001 | D33: PLACA DE OBRA EM CHAPA DE ACO GALVANIZADO | E33: 4.5 | F33: m² | G33: 350.73 | J33: 1578.285
A34: Atividade Auxiliar | B34: SINAPI | C34: 101489 | D34: ENTRADA DE ENERGIA ELÉTRICA, AÉREA, MONOFÁSICA, COM CAIXA DE SOBREPOR, CABO DE 10 MM2 E DISJUNTOR DIN 50A (NÃO INCLUSO O POSTE DE CONCRETO). AF_07/2020_PS | E34: 1 | F34: UN | G34: 1494.86 | J34: 1494.86
A35: Atividade Auxiliar | B35: SINAPI | C35: 95636 | D35: KIT CAVALETE PARA MEDIÇÃO DE ÁGUA - ENTRADA PRINCIPAL, EM AÇO GALVANIZADO DN 25 (1 ) FORNECIMENTO E INSTALAÇÃO (EXCLUSIVE HIDRÔMETRO). AF_11/2016 | E35: 1 | F35: UN | G35: 336.45 | J35: 336.45
A36: Atividade Auxiliar | B36: SINAPI | C36: 98525 | D36: LIMPEZA MECANIZADA DE CAMADA VEGETAL, VEGETAÇÃO E PEQUENAS ÁRVORES (DIÂMETRO DE TRONCO MENOR QUE 0,20 M), COM TRATOR DE ESTEIRAS.AF_05/2018 | E36: 360 | F36: m² | G36: 0.35 | J36: 126
A37: Atividade Auxiliar | B37: SINAPI | C37: 89712 | D37: TUBO PVC, SERIE NORMAL, ESGOTO PREDIAL, DN 50 MM, FORNECIDO E INSTALADO EM RAMAL DE DESCARGA OU RAMAL DE ESGOTO SANITÁRIO. AF_08/2022 | E37: 45 | F37: M | G37: 22.92 | J37: 1031.4
A38: Atividade Auxiliar | B38: SINAPI | C38: 89402 | D38: TUBO, PVC, SOLDÁVEL, DN 25MM, INSTALADO EM RAMAL DE DISTRIBUIÇÃO DE ÁGUA - FORNECIMENTO E INSTALAÇÃO. AF_06/2022 | E38: 45 | F38: M | G38: 10.24 | J38: 460.8
A39: Atividade Auxiliar | B39: SINAPI | C39: 98459 | D39: TAPUME COM TELHA METÁLICA. AF_05/2018 | E39: 212.8 | F39: m² | G39: 82.08 | J39: 17466.624
A40: Atividade Auxiliar | B40: SINAPI | C40: 99059 | D40: LOCACAO CONVENCIONAL DE OBRA, UTILIZANDO GABARITO DE TÁBUAS CORRIDAS PONTALETADAS A CADA 2,00M - 2 UTILIZAÇÕES. AF_10/2018 | E40: 76 | F40: M | G40: 44.35 | J40: 3370.6
F41: Custo Total das Atividades => | J41: 75293.385
E42: MO sem LS => | F42: 14345.23 | G42: LS => | H42: 4.15 | I42: MO com LS => | J42: 14349.383
E43: Valor do BDI => | F43: 12001.13 | H43: Valor com BDI => | J43: 88351.75
A45: 1.4 | B45: Código | C45: Banco | D45: Descrição | E45: Tipo | G45: Und | H45: Quant. | I45: Valor Unit | J45: Total
A46: Composição | B46: 0903810 | C46: SICRO3 | D46: Instalação da usina de asfalto a quente capacidade de 120 t/h | G46: un | H46: 1 | I46: 202055.35 | J46: 202055.35
F47: Custo Horário de Execução => | J47: 0
F48: Fator de Influencia da Chuva - FIC => | J48: 0
F49: Custo do FIC => | J49: 0
F50: Produção de Equipe => | J50: 1
F51: Custo Unitário de Execução => | J51: 0
A52: D | B52: Banco | C52: Código | D52: Atividades Auxiliares | E52: Quantidade | F52: Unidade | G52: Preço Unitário | J52: Custo Horário
A53: Atividade Auxiliar | B53: SICRO3 | C53: 903845 | D53: Lastro de brita comercial - espalhamento mecânico | E53: 136.9743 | F53: m³ | G53: 207.02 | J53: 28356.4196
A54: Atividade Auxiliar | B54: SICRO3 | C54: 919013 | D54: Montagem e desmontagem da usina de asfalto a quente com capacidade de 120 t/h - inclusive construção e demolição debases, rampas, depósitos de agregados e dique de contenção | E54: 1 | F54: un | G54: 135716.06 | J54: 135716.06
A55: Atividade Auxiliar | B55: SICRO3 | C55: 3713608 | D55: Cerca com 4 fios de arame farpado e mourão de madeira a cada 2,5 m e esticador a cada 50 m | E55: 334 | F55: m | G55: 21.67 | J55: 7237.78
A56: Atividade Auxiliar | B56: SICRO3 | C56: 4011209 | D56: Regularização do subleito | E56: 6592 | F56: m² | G56: 1.16 | J56: 7646.72
A57: Atividade Auxiliar | B57: SICRO3 | C57: 4011211 | D57: Reforço do subleito com material de jazida | E57: 1318.4 | F57: m³ | G57: 11.62 | J57: 15319.808
A58: Atividade Auxiliar | B58: SICRO3 | C58: 5502985 | D58: Limpeza mecanizada da camada vegetal | E58: 6592 | F58: m² | G58: 0.49 | J58: 3230.08
A59: Atividade Auxiliar | B59: SICRO3 | C59: 5502986 | D59: Expurgo de jazida | E59: 1648 | F59: m³ | G59: 2.76 | J59: 4548.48
F60: Custo Total das Atividades => | J60: 202055.3476
E61: MO sem LS => | F61: 41657.87539 | G61: LS => | H61: 0 | I61: MO com LS => | J61: 41657.87539
E62: Valor do BDI => | F62: 35077.53 | H62: Valor com BDI => | J62: 237132.88
A64: 1.5 | B64: Código | C64: Banco | D64: Descrição | E64: Tipo | G64: Und | H64: Quant. | I64: Valor Unit | J64: Total
A65: Composição | B65: 0903808 | C65: SICRO3 | D65: Instalação da usina misturadora de solos com capacidade de 300 t/h | G65: un | H65: 1 | I65: 116444.94 | J65: 116444.94
F66: Custo Horário de Execução => | J66: 0
F67: Fator de Influencia da Chuva - FIC => | J67: 0
F68: Custo do FIC => | J68: 0
F69: Produção de Equipe => | J69: 1
F70: Custo Unitário de Execução => | J70: 0
A71: D | B71: Banco | C71: Código | D71: Atividades Auxiliares | E71: Quantidade | F71: Unidade | G71: Preço Unitário | J71: Custo Horário
A72: Atividade Auxiliar | B72: SICRO3 | C72: 903845 | D72: Lastro de brita comercial - espalhamento mecânico | E72: 110.12926 | F72: m³ | G72: 207.02 | J72: 22798.9594
A73: Atividade Auxiliar | B73: SICRO3 | C73: 919012 | D73: Montagem e desmontagem da usina misturadora de solos com capacidade de 300 t/h - inclusive construção e demolição debases, rampas e depósitos de agregados | E73: 1 | F73: un | G73: 60936.6 | J73: 60936.6
A74: Atividade Auxiliar | B74: SICRO3 | C74: 3713608 | D74: Cerca com 4 fios de arame farpado e mourão de madeira a cada 2,5 m e esticador a cada 50 m | E74: 302 | F74: m | G74: 21.67 | J74: 6544.34
A75: Atividade Auxiliar | B75: SICRO3 | C75: 4011209 | D75: Regularização do subleito | E75: 5610 | F75: m² | G75: 1.16 | J75: 6507.6
A76: Atividade Auxiliar | B76: SICRO3 | C76: 4011211 | D76: Reforço do subleito com material de jazida | E76: 1122 | F76: m³ | G76: 11.62 | J76: 13037.64
A77: Atividade Auxiliar | B77: SICRO3 | C77: 5502985 | D77: Limpeza mecanizada da camada vegetal | E77: 5610 | F77: m² | G77: 0.49 | J77: 2748.9
A78: Atividade Auxiliar | B78: SICRO3 | C78: 5502986 | D78: Expurgo de jazida | E78: 1402.5 | F78: m³ | G78: 2.76 | J78: 3870.9
F79: Custo Total das Atividades => | J79: 116444.9394
E80: MO sem LS => | F80: 22219.66931 | G80: LS => | H80: 0 | I80: MO com LS => | J80: 22219.66931
E81: Valor do BDI => | F81: 20402.56 | H81: Valor com BDI => | J81: 136847.5
A83: 1.6 | B83: Código | C83: Banco | D83: Descrição | E83: Tipo | G83: Und | H83: Quant. | I83: Valor Unit | J83: Total
A84: Composição | B84: 5502985 | C84: SICRO3 | D84: Limpeza mecanizada da camada vegetal | G84: m² | H84: 1 | I84: 0.49 | J84: 0.49
A85: A | B85: Código | C85: Banco | D85: Equipamentos | E85: Quantidade | F85: Utilização | H85: Custo Operacional | J85: Custo Horário
F86: Operativa | G86: Improdutiva | H86: Operativa | I86: Improdutiva
A87: Insumo | B87: E9540 | C87: SICRO3 | D87: Trator sobre esteiras com lâmina - 127 kW | E87: 1 | F87: 1 | G87: 0 | H87: 266.8875 | I87: 100.5727 | J87: 266.8875
F88: Custo Horário de Equipamentos => | J88: 266.8875
A89: B | B89: Código | C89: Banco | D89: Mão de Obra | E89: Quantidade | F89: Salário Hora | J89: Custo Horário
A90: Insumo | B90: P9824 | C90: SICRO3 | D90: Servente | E90: 1 | I90: 18.5436 | J90: 18.5436
F91: Custo Horário da Mão de Obra => | J91: 18.5436
F92: Adc.M.O. - Ferramentas (0,0%) => | J92: 0
F93: Custo Horário de Execução => | J93: 285.4311
F94: Fator de Influencia da Chuva - FIC => | J94: 0.0643
F95: Custo do FIC => | J95: 0.0295
F96: Produção de Equipe => | J96: 622.95
F97: Custo Unitário de Execução => | J97: 0.4582
E98: MO sem LS => | F98: 0.02976739706 | G98: LS => | H98: 0 | I98: MO com LS => | J98: 0.02976739706
E99: Valor do BDI => | F99: 0.1 | H99: Valor com BDI => | J99: 0.59
A101: 1.7 | B101: Código | C101: Banco | D101: Descrição | E101: Tipo | G101: Und | H101: Quant. | I101: Valor Unit | J101: Total
A102: Composição | B102: 5914655 | C102: SICRO3 | D102: Carga, manobra e descarga de materiais diversos em caminhão carroceria de 15 t - carga e descarga manuais | G102: t | H102: 1 | I102: 31.9 | J102: 31.9
A103: A | B103: Código | C103: Banco | D103: Equipamentos | E103: Quantidade | F103: Utilização | H103: Custo Operacional | J103: Custo Horário
F104: Operativa | G104: Improdutiva | H104: Operativa | I104: Improdutiva
A105: Insumo | B105: E9592 | C105: SICRO3 | D105: Caminhão carroceria com capacidade de 15 t - 188 kW | E105: 1 | F105: 1 | G105: 0 | H105: 266.3866 | I105: 77.4133 | J105: 266.3866
F106: Custo Horário de Equipamentos => | J106: 266.3866
A107: B | B107: Código | C107: Banco | D107: Mão de Obra | E107: Quantidade | F107: Salário Hora | J107: Custo Horário
A108: Insumo | B108: P9824 | C108: SICRO3 | D108: Servente | E108: 6 | I108: 18.5436 | J108: 111.2616
F109: Custo Horário da Mão de Obra => | J109: 111.2616
F110: Adc.M.O. - Ferramentas (0,0%) => | J110: 0
F111: Custo Horário de Execução => | J111: 377.6482
F112: Fator de Influencia da Chuva - FIC => | J112: 0
F113: Custo do FIC => | J113: 0
F114: Produção de Equipe => | J114: 11.84
F115: Custo Unitário de Execução => | J115: 31.896
E116: MO sem LS => | F116: 9.397094595 | G116: LS => | H116: 0 | I116: MO com LS => | J116: 9.397094595
E117: Valor do BDI => | F117: 6.67 | H117: Valor com BDI => | J117: 38.57
A119: 1.8 | B119: Código | C119: Banco | D119: Descrição | E119: Tipo | G119: Und | H119: Quant. | I119: Valor Unit | J119: Total
A120: Composição | B120: 5914479 | C120: SICRO3 | D120: Transporte com caminhão carroceria de 15 t - rodovia pavimentada | G120: tkm | H120: 1 | I120: 0.71 | J120: 0.71
A121: A | B121: Código | C121: Banco | D121: Equipamentos | E121: Quantidade | F121: Utilização | H121: Custo Operacional | J121: Custo Horário
F122: Operativa | G122: Improdutiva | H122: Operativa | I122: Improdutiva
A123: Insumo | B123: E9592 | C123: SICRO3 | D123: Caminhão carroceria com capacidade de 15 t - 188 kW | E123: 1 | F123: 1 | G123: 0 | H123: 266.3866 | I123: 77.4133 | J123: 266.3866
F124: Custo Horário de Equipamentos => | J124: 266.3866
F125: Custo Horário de Execução => | J125: 266.3866
F126: Fator de Influencia da Chuva - FIC => | J126: 0
F127: Custo do FIC => | J127: 0
F128: Produção de Equipe => | J128: 372.88
F129: Custo Unitário de Execução => | J129: 0.7144
E130: MO sem LS => | F130: 0 | G130: LS => | H130: 0 | I130: MO com LS => | J130: 0
E131: Valor do BDI => | F131: 0.15 | H131: Valor com BDI => | J131: 0.86
A133: 1.9 | B133: Código | C133: Banco | D133: Descrição | E133: Tipo | G133: Und | H133: Quant. | I133: Valor Unit | J133: Total
A134: Composição | B134: 5914464 | C134: SICRO3 | D134: Transporte com caminhão carroceria de 15 t - rodovia em revestimento primário | G134: tkm | H134: 1 | I134: 0.91 | J134: 0.91
A135: A | B135: Código | C135: Banco | D135: Equipamentos | E135: Quantidade | F135: Utilização | H135: Custo Operacional | J135: Custo Horário
F136: Operativa | G136: Improdutiva | H136: Operativa | I136: Improdutiva
A137: Insumo | B137: E9592 | C137: SICRO3 | D137: Caminhão carroceria com capacidade de 15 t - 188 kW | E137: 1 | F137: 1 | G137: 0 | H137: 266.3866 | I137: 77.4133 | J137: 266.3866
F138: Custo Horário de Equipamentos => | J138: 266.3866
F139: Custo Horário de Execução => | J139: 266.3866
F140: Fator de Influencia da Chuva - FIC => | J140: 0.0643
F141: Custo do FIC => | J141: 0.0551
F142: Produção de Equipe => | J142: 310.73
F143: Custo Unitário de Execução => | J143: 0.8573
E144: MO sem LS => | F144: 0 | G144: LS => | H144: 0 | I144: MO com LS => | J144: 0
E145: Valor do BDI => | F145: 0.18 | H145: Valor com BDI => | J145: 1.09
A147: 1.10 | B147: Código | C147: Banco | D147: Descrição | E147: Tipo | G147: Und | H147: Quant. | I147: Valor Unit | J147: Total
A148: Composição | B148: 78472 | C148: Próprio | D148: SINAPI - 78472 - SERVICOS TOPOGRAFICOS PARA PAVIMENTACAO, INCLUSIVE NOTA DE SERVICOS, ACOMPANHAMENTO E GREIDE | E148: SEDI - SERVIÇOS DIVERSOS | G148: m² | H148: 1 | I148: 0.44 | J148: 0.44
A149: Composição Auxiliar | B149: 5914479 | C149: SICRO3 | D149: Transporte com caminhão carroceria de 15 t - rodovia pavimentada | G149: tkm | H149: 0.0002160171 | I149: 0.71 | J149: 0
A150: Composição Auxiliar | B150: 5914464 | C150: SICRO3 | D150: Transporte com caminhão carroceria de 15 t - rodovia em revestimento primário | G150: tkm | H150: 0.001060605 | I150: 0.91 | J150: 0
A151: Insumo | B151: E9512 | C151: SICRO3 | D151: Veículo leve - 53 kW | E151: Equipamento | G151: UN | H151: 0.001 | I151: 57.0768 | J151: 0.06
A152: Insumo | B152: P9950 | C152: SICRO3 | D152: Auxiliar de topografia | E152: Mão de Obra | G152: mês | H152: 1.420454545e-05 | I152: 4021.6863 | J152: 0.06
A153: Insumo | B153: P9949 | C153: SICRO3 | D153: Topógrafo | E153: Mão de Obra | G153: mês | H153: 1.420454545e-05 | I153: 5654.0835 | J153: 0.08
A154: Insumo | B154: P9824 | C154: SICRO3 | D154: Servente | E154: Mão de Obra | G154: h | H154: 0.0075 | I154: 18.5436 | J154: 0.14
A155: Insumo | B155: P9848 | C155: SICRO3 | D155: Desenhista | E155: Mão de Obra | G155: mês | H155: 1.136363636e-05 | I155: 6836.6379 | J155: 0.08
A156: Insumo | B156: M0289 | C156: SICRO3 | D156: Tábua - E = 2,5 cm e L = 15 cm | E156: Material | G156: m | H156: 0.002886 | I156: 5.8904 | J156: 0.02
E157: MO sem LS => | F157: 0.36 | G157: LS => | H157: 0 | I157: MO com LS => | J157: 0.36
E158: Valor do BDI => | F158: 0.09 | H158: Valor com BDI => | J158: 0.53
A160: 2.1 | B160: Código | C160: Banco | D160: Descrição | E160: Tipo | G160: Und | H160: Quant. | I160: Valor Unit | J160: Total
A161: Composição | B161: 00000005 | C161: Próprio | D161: ADMINISTRAÇÃO DE OBRA | E161: SERT - SERVIÇOS TÉCNICOS | G161: MÊS | H161: 1 | I161: 74130.71 | J161: 74130.71
A162: Insumo | B162: P9819 | C162: SICRO3 | D162: Engenheiro supervisor | E162: Mão de Obra | G162: mês | H162: 1 | I162: 19564.0397 | J162: 19564.04
A163: Insumo | B163: P9840 | C163: SICRO3 | D163: Encarregado geral | E163: Mão de Obra | G163: mês | H163: 1 | I163: 9521.5987 | J163: 9521.6
A164: Insumo | B164: P9897 | C164: SICRO3 | D164: Técnico de meio ambiente | E164: Mão de Obra | G164: mês | H164: 1 | I164: 6600.2853 | J164: 6600.29
A165: Insumo | B165: P9878 | C165: SICRO3 | D165: Secretária | E165: Mão de Obra | G165: mês | H165: 1 | I165: 5483.1093 | J165: 5483.11
A166: Insumo | B166: P9903 | C166: SICRO3 | D166: Auxiliar técnico | E166: Mão de Obra | G166: mês | H166: 2 | I166: 4185.6602 | J166: 8371.32
A167: Insumo | B167: P9827 | C167: SICRO3 | D167: Vigia | E167: Mão de Obra | G167: mês | H167: 2 | I167: 4086.4676 | J167: 8172.94
A168: Insumo | B168: P9948 | C168: SICRO3 | D168: Motorista de veículo leve - mensalista | E168: Mão de Obra | G168: mês | H168: 1 | I168: 4304.4824 | J168: 4304.48
A169: Insumo | B169: P9806 | C169: SICRO3 | D169: Auxiliar administrativo | E169: Mão de Obra | G169: mês | H169: 2 | I169: 4217.3887 | J169: 8434.78
A170: Insumo | B170: P9842 | C170: SICRO3 | D170: Faxineiro | E170: Mão de Obra | G170: mês | H170: 1 | I170: 3678.149 | J170: 3678.15
E171: MO sem LS => | F171: 74130.71 | G171: LS => | H171: 0 | I171: MO com LS => | J171: 74130.71
E172: Valor do BDI => | F172: 15515.56 | H172: Valor com BDI => | J172: 89646.27
A174: 3.1 | B174: Código | C174: Banco | D174: Descrição | E174: Tipo | G174: Und | H174: Quant. | I174: Valor Unit | J174: Total
A175: Composição | B175: 101 | C175: Próprio | D175: MOBILIZAÇÃO E DESMOBILIZAÇÃO DE PESSOAL, VEÍCULOS E EQUIPAMENTOS | E175: CHOR - CUSTOS HORÁRIOS DE MÁQUINAS E EQUIPAMENTOS | G175: Unid | H175: 1 | I175: 194694.06 | J175: 194694.06
A176: Insumo | B176: MOB/DESM - 01 | C176: Próprio | D176: MOBILIZAÇÃO E DESMOBILIZAÇÃO DE PESSOAL, VEÍCULOS E EQUIPAMENTOS PESADOS | E176: Serviços | G176: Und. | H176: 1 | I176: 194694.06 | J176: 194694.06
E177: MO sem LS => | F177: 0 | G177: LS => | H177: 0 | I177: MO com LS => | J177: 0
E178: Valor do BDI => | F178: 40749.47 | H178: Valor com BDI => | J178: 235443.53
A180: 4.1 | B180: Código | C180: Banco | D180: Descrição | E180: Tipo | G180: Und | H180: Quant. | I180: Valor Unit | J180: Total
A181: Composição | B181: 5501886 | C181: SICRO3 | D181: Escavação, carga e transporte de material de 1ª categoria - DMT de 2.500 a 3.000 m - caminho de serviço em leito natural -com carregadeira e caminhão basculante de 14 m³ | G181: m³ | H181: 1 | I181: 15.15 | J181: 15.15
A182: A | B182: Código | C182: Banco | D182: Equipamentos | E182: Quantidade | F182: Utilização | H182: Custo Operacional | J182: Custo Horário
F183: Operativa | G183: Improdutiva | H183: Operativa | I183: Improdutiva
A184: Insumo | B184: E9667 | C184: SICRO3 | D184: Caminhão basculante com capacidade de 14 m³ - 188 kW | E184: 8 | F184: 0.95 | G184: 0.05 | H184: 292.4578 | I184: 92.1982 | J184: 2259.5586
A185: Insumo | B185: E9511 | C185: SICRO3 | D185: Carregadeira de pneus com capacidade de 3,40 m³ - 195 kW | E185: 1 | F185: 1 | G185: 0 | H185: 427.0724 | I185: 204.5992 | J185: 427.0724
A186: Insumo | B186: E9541 | C186: SICRO3 | D186: Trator sobre esteiras com lâmina - 259 kW | E186: 1 | F186: 1 | G186: 0 | H186: 765.8403 | I186: 301.7262 | J186: 765.8403
F187: Custo Horário de Equipamentos => | J187: 3452.4713
A188: B | B188: Código | C188: Banco | D188: Mão de Obra | E188: Quantidade | F188: Salário Hora | J188: Custo Horário
A189: Insumo | B189: P9824 | C189: SICRO3 | D189: Servente | E189: 1 | I189: 18.5436 | J189: 18.5436
F190: Custo Horário da Mão de Obra => | J190: 18.5436
F191: Adc.M.O. - Ferramentas (0,0%) => | J191: 0
F192: Custo Horário de Execução => | J192: 3471.0149
F193: Fator de Influencia da Chuva - FIC => | J193: 0.0643
F194: Custo do FIC => | J194: 0.9152
F195: Produção de Equipe => | J195: 243.82
F196: Custo Unitário de Execução => | J196: 14.236
E197: MO sem LS => | F197: 0.07605446641 | G197: LS => | H197: 0 | I197: MO com LS => | J197: 0.07605446641
E198: Valor do BDI => | F198: 3.05 | H198: Valor com BDI => | J198: 18.2
A200: 4.2 | B200: Código | C200: Banco | D200: Descrição | E200: Tipo | G200: Und | H200: Quant. | I200: Valor Unit | J200: Total
A201: Composição | B201: 4016096 | C201: SICRO3 | D201: Escavação e carga de material de jazida com escavadeira hidráulica de 1,56 m³ | G201: m³ | H201: 1 | I201: 1.53 | J201: 1.53
A202: A | B202: Código | C202: Banco | D202: Equipamentos | E202: Quantidade | F202: Utilização | H202: Custo Operacional | J202: Custo Horário
F203: Operativa | G203: Improdutiva | H203: Operativa | I203: Improdutiva
A204: Insumo | B204: E9515 | C204: SICRO3 | D204: Escavadeira hidráulica sobre esteiras com caçamba com capacidade de 1,56 m³ - 118 kW | E204: 1 | F204: 1 | G204: 0 | H204: 313.0892 | I204: 141.725 | J204: 313.0892
F205: Custo Horário de Equipamentos => | J205: 313.0892
A206: B | B206: Código | C206: Banco | D206: Mão de Obra | E206: Quantidade | F206: Salário Hora | J206: Custo Horário
A207: Insumo | B207: P9824 | C207: SICRO3 | D207: Servente | E207: 1 | I207: 18.5436 | J207: 18.5436
F208: Custo Horário da Mão de Obra => | J208: 18.5436
F209: Adc.M.O. - Ferramentas (0,0%) => | J209: 0
F210: Custo Horário de Execução => | J210: 331.6328
F211: Fator de Influencia da Chuva - FIC => | J211: 0.0643
F212: Custo do FIC => | J212: 0.0926
... 4711 more rows

Sheet Cronograma
B1: CRONOGRAMA FÍSICO-FINANCEIRO
D4: Mês 1 | E4: Mês 2 | F4: Mês 3 | G4: Mês 4 | H4: Mês 5 | I4: Mês 6 | J4: Mês 7 | K4: Mês 8 | L4: Mês 9 | M4: Mês 10
B5: SERVIÇOS PRELIMINARES | C5: ='Resumo do Orçamento'!I7 -> 752968.7876 | D5: =D6*$C$5 -> 376484.3938 | E5: 376484.3938 | F5: 0 | G5: 0 | H5: 0 | I5: 0 | J5: 0 | K5: 0 | L5: 0 | M5: 0 | N5: 752968.7876
D6: 0.5 | E6: 0.5 | F6: 0 | G6: 0 | H6: 0 | I6: 0 | J6: 0 | K6: 0 | L6: 0 | M6: 0 | N6: =SUM(D6:M6) -> 1
B7: ADMINISTRAÇÃO LOCAL | C7: ='Resumo do Orçamento'!I8 -> 896462.676 | D7: =D8*$C$7 -> 98610.89436 | E7: =E8*$C$7 -> 89646.2676 | F7: 89646.2676 | G7: 125504.7746 | H7: 134469.4014 | I7: 98610.89436 | J7: 89646.2676 | K7: 89646.2676 | L7: 44823.1338 | M7: 35858.50704 | N7: 896462.676
D8: 0.11 | E8: 0.1 | F8: 0.1 | G8: 0.14 | H8: 0.15 | I8: 0.11 | J8: 0.1 | K8: 0.1 | L8: 0.05 | M8: 0.04 | N8: =SUM(D8:M8) -> 1
B9: MOBILIZAÇÃO E DESMOBIOLIZAÇÃO | C9: ='Resumo do Orçamento'!I9 -> 470887.0535 | D9: =D10*$C$9 -> 235443.5268 | E9: =E10*$C$9 -> 0 | F9: 0 | G9: 0 | H9: 0 | I9: 0 | J9: 0 | K9: 0 | L9: 0 | M9: 235443.5268 | N9: 470887.0535
D10: 0.5 | E10: 0 | F10: 0 | G10: 0 | H10: 0 | I10: 0 | J10: 0 | K10: 0 | L10: 0 | M10: 0.5 | N10: =SUM(D10:M10) -> 1
B11: TERRAPLANAGEM | C11: ='Resumo do Orçamento'!I10 -> 2205834.4 | D11: =D12*$C$11 -> 110291.72 | E11: =E12*$C$11 -> 176466.752 | F11: 772042.0401 | G11: 882333.7601 | H11: 264700.128 | I11: 0 | J11: 0 | K11: 0 | L11: 0 | M11: 0 | N11: 2205834.4
D12: 0.05 | E12: 0.08 | F12: 0.35 | G12: 0.4 | H12: 0.12 | I12: 0 | J12: 0 | K12: 0 | L12: 0 | M12: 0 | N12: =SUM(D12:M12) -> 1
B13: PAVIMENTAÇÃO | C13: ='Resumo do Orçamento'!I11 -> 6500844.821 | D13: =D14*$C$13 -> 0 | E13: =E14*$C$13 -> 0 | F13: 520067.5857 | G13: 780101.3785 | H13: 1300168.964 | I13: 1300168.964 | J13: 1300168.964 | K13: 1300168.964 | L13: 0 | M13: 0 | N13: 6500844.821
D14: 0 | E14: 0 | F14: 0.08 | G14: 0.12 | H14: 0.2 | I14: 0.2 | J14: 0.2 | K14: 0.2 | L14: 0 | M14: 0 | N14: =SUM(D14:M14) -> 1
B15: RECAPEAMENTO - BR-156 | C15: ='Resumo do Orçamento'!I12 -> 396682.7057 | D15: =D16*$C$15 -> 0 | E15: =E16*$C$15 -> 0 | F15: 0 | G15: 0 | H15: 0 | I15: 0 | J15: 0 | K15: 0 | L15: 238009.6234 | M15: 158673.0823 | N15: 396682.7057
D16: 0 | E16: 0 | F16: 0 | G16: 0 | H16: 0 | I16: 0 | J16: 0 | K16: 0 | L16: 0.6 | M16: 0.4 | N16: =SUM(D16:M16) -> 1
B17: DRENAGEM SUPERFICIAL | C17: ='Resumo do Orçamento'!I13 -> 492247.1774 | D17: =D18*$C$17 -> 0 | E17: =E18*$C$17 -> 0 | F17: 0 | G17: 0 | H17: 0 | I17: 196898.8709 | J17: 98449.43547 | K17: 98449.43547 | L17: 49224.71774 | M17: 49224.71774 | N17: 492247.1774
D18: 0 | E18: 0 | F18: 0 | G18: 0 | H18: 0 | I18: 0.4 | J18: 0.2 | K18: 0.2 | L18: 0.1 | M18: 0.1 | N18: =SUM(D18:M18) -> 1
B19: PASSEIO PÚBLICO | C19: ='Resumo do Orçamento'!I14 -> 160029.9718 | D19: =D20*$C$19 -> 0 | E19: =E20*$C$19 -> 0 | F19: 0 | G19: 0 | H19: 0 | I19: 0 | J19: 0 | K19: 48008.99155 | L19: 64011.98874 | M19: 48008.99155 | N19: 160029.9718
D20: 0 | E20: 0 | F20: 0 | G20: 0 | H20: 0 | I20: 0 | J20: 0 | K20: 0.3 | L20: 0.4 | M20: 0.3 | N20: =SUM(D20:M20) -> 1
B21: SINALIZAÇÃO | C21: ='Resumo do Orçamento'!I15 -> 126045.2612 | D21: =D22*$C$21 -> 0 | E21: =E22*$C$21 -> 0 | F21: 0 | G21: 0 | H21: 0 | I21: 0 | J21: 0 | K21: 0 | L21: 63022.63062 | M21: 63022.63062 | N21: 126045.2612
D22: 0 | E22: 0 | F22: 0 | G22: 0 | H22: 0 | I22: 0 | J22: 0 | K22: 0 | L22: 0.5 | M22: 0.5 | N22: =SUM(D22:M22) -> 1
B23: DRENAGEM PROFUNDA | C23: ='Resumo do Orçamento'!I16 -> 919915.9882 | D23: =D24*$C$23 -> 0 | E23: =E24*$C$23 -> 73593.27906 | F23: 248377.3168 | G23: 275974.7965 | H23: 321970.5959 | I23: 0 | J23: 0 | K23: 0 | L23: 0 | M23: 0 | N23: 919915.9882
D24: 0 | E24: 0.08 | F24: 0.27 | G24: 0.3 | H24: 0.35 | I24: 0 | J24: 0 | K24: 0 | L24: 0 | M24: 0 | N24: =SUM(D24:M24) -> 1
B26: NO MÊS | D26: =D5+D7+D9+D11+D13+D15+D17+D19+D21+D23 -> 820830.5349 | E26: 716190.6925 | F26: 1630133.21 | G26: 2063914.71 | H26: 2021309.09 | I26: 1595678.73 | J26: 1488264.667 | K26: 1536273.659 | L26: 459092.0943 | M26: 590231.456 | N26: =SUM(D26:M26) -> 12921918.84
D27: =D26/SUM($C$5:$C$24) -> 0.06352234099 | E27: =E26/SUM($C$5:$C$24) -> 0.05542448465 | F27: 0.1261525653 | G27: 0.1597219991 | H27: 0.1564248402 | I27: 0.1234862058 | J27: 0.1151736584 | K27: 0.1188889729 | L27: 0.03552816729 | M27: 0.04567676544 | N27: =SUM(D27:M27) -> 1
B28: ACUMULADO | D28: =D26 -> 820830.5349 | E28: =D28+E26 -> 1537021.227 | F28: 3167154.438 | G28: 5231069.147 | H28: 7252378.237 | I28: 8848056.966 | J28: 10336321.63 | K28: 11872595.29 | L28: 12331687.39 | M28: 12921918.84
D29: =D27 -> 0.06352234099 | E29: =D29+E27 -> 0.1189468256 | F29: 0.2450993909 | G29: 0.40482139 | H29: 0.5612462302 | I29: 0.684732436 | J29: 0.7999060944 | K29: 0.9187950673 | L29: 0.9543232346 | M29: 1

Sheet Encargos
A6: OBJETO: COMPLEMENTAÇÃO DOS ESTUDOS PRELIMINARES E CONSOLIDAÇÃO DO PROJETO RODOVIÁRIO DO RAMAL DO MANGA/AP
A7: LOCAL: OIAPOQUE-AP
A8: DATA: VIGENCIA 12/2022
C10: HORISTA | D10: MENSALISTA | E10: HORISTA | F10: MENSALISTA
A12: GRUPO A
A13: A1 | B13: INSS | C13: 0 | D13: 0 | E13: 20 | F13: 20
A14: A2 | B14: SESI | C14: 1.5 | D14: 1.5 | E14: 1.5 | F14: 1.5
A15: A3 | B15: SENAI | C15: 1 | D15: 1 | E15: 1 | F15: 1
A16: A4 | B16: INCRA | C16: 0.2 | D16: 0.2 | E16: 0.2 | F16: 0.2
A17: A5 | B17: SEBRAE | C17: 0.6 | D17: 0.6 | E17: 0.6 | F17: 0.6
A18: A6 | B18: Salário Educação | C18: 2.5 | D18: 2.5 | E18: 2.5 | F18: 2.5
A19: A7 | B19: Seguro Contra Acidentes de Trabalho | C19: 3 | D19: 3 | E19: 3 | F19: 3
A20: A8 | B20: FGTS | C20: 8 | D20: 8 | E20: 8 | F20: 8
A21: A9 | B21: SECONCI | C21: 1 | D21: 1 | E21: 0 | F21: 0
A22: A | B22: Total | C22: =SUM(C13:C21) -> 17.8 | D22: =SUM(D13:D21) -> 17.8 | E22: =SUM(E13:E21) -> 36.8 | F22: =SUM(F13:F21) -> 36.8
A23: GRUPO B
A24: B1 | B24: Repouso Semanal Remunerado | C24: 17.88 | D24: - | E24: 18.12 | F24: -
A25: B2 | B25: Feriados | C25: 3.94 | D25: - | E25: 4.83 | F25: -
A26: B3 | B26: Auxílio-enfermidade | C26: 0.91 | D26: 0.69 | E26: 0.89 | F26: 0.66
A27: B4 | B27: 13° salário | C27: 10.98 | D27: 8.33 | E27: 11.2 | F27: 8.33
A28: B5 | B28: Licença-paternidade | C28: 0.07 | D28: 0.06 | E28: 0.07 | F28: 0.05
A29: B6 | B29: Faltas Justificadas | C29: 0.73 | D29: 0.56 | E29: 0.75 | F29: 0.56
A30: B7 | B30: Dias de chuva | C30: 1.45 | D30: - | E30: 2.03 | F30: -
A31: B8 | B31: Auxílio Acidente de Trabalho | C31: 0.11 | D31: 0.09 | E31: 0.11 | F31: 0.08
A32: B9 | B32: Férias Gozadas | C32: 11.35 | D32: 8.62 | E32: 12.77 | F32: 9.5
A33: B10 | B33: Salário Maternidade | C33: 0.03 | D33: 0.03 | E33: 0.04 | F33: 0.03
A34: B | B34: Total | C34: =SUM(C24:C33) -> 47.45 | D34: =SUM(D24:D33) -> 18.38 | E34: =SUM(E24:E33) -> 50.81 | F34: =SUM(F24:F33) -> 19.21
A35: GRUPO C
A36: C1 | B36: Aviso Prévio Indenizado | C36: 6.76 | D36: 5.14 | E36: 4.06 | F36: 3.02
A37: C2 | B37: Aviso Prévio Trabalhado | C37: 0.16 | D37: 0.12 | E37: 0.1 | F37: 0.07
A38: C3 | B38: Férias Indenizadas | C38: 2.28 | D38: 1.73 | E38: 1.62 | F38: 1.21
A39: C4 | B39: Depósito Rescisão Sem Justa Causa | C39: 3.81 | D39: 2.89 | E39: 2.07 | F39: 1.54
A40: C5 | B40: Indenização Adicional | C40: 0.57 | D40: 0.43 | E40: 0.34 | F40: 0.25
A41: C | B41: Total | C41: =SUM(C36:C40) -> 13.58 | D41: =SUM(D36:D40) -> 10.31 | E41: =SUM(E36:E40) -> 8.19 | F41: =SUM(F36:F40) -> 6.09
A42: GRUPO D
A43: D1 | B43: Reincidência de A sobre B | C43: 8.45 | D43: 3.27 | E43: 18.7 | F43: 7.07
A44: D2 | B44: Reincidência de Grupo A sobre Aviso Prévio Trabalhado e Reincidência do FGTS sobre Aviso Prévio Indenizado | C44: 0.57 | D44: 0.43 | E44: 0.36 | F44: 0.27
A45: D | B45: Total | C45: =SUM(C43:C44) -> 9.02 | D45: =SUM(D43:D44) -> 3.7 | E45: =SUM(E43:E44) -> 19.06 | F45: =SUM(F43:F44) -> 7.34
A47: T O T A L (%) | C47: =C22+C34+C41+C45 -> 87.85 | D47: =D22+D34+D41+D45 -> 50.19 | E47: =E22+E34+E41+E45 -> 114.86 | F47: =F22+F34+F41+F45 -> 69.44

Sheet Mob_Desmob
A2: CODEVASF – Companhia de Desenvolvimento do Vale do São Francisco
A3: OBJETO: COMPLEMENTAÇÃO DOS ESTUDOS PRELIMINARES E CONSOLIDAÇÃO DO PROJETO RODOVIÁRIO DO RAMAL DO MANGA, NO ESTADO DO AMAPÁ - CODESAFV
A4: LOCAL: OIAPOQUE-AP
A7: MOBILIZAÇÃO E DESMOBILIZAÇÃO DE PESSOAL, VEÍCULOS E EQUIPAMENTOS PESADOS
A9: 1 | C9: MOBILIZAÇÃO | D9: UNID. | E9: QUANT. | F9: Fator Relacionado | G9: Fator de Utilização do Veículo | I9: Custo Horário do Veículo | J9: CUST. MOB. E DESMOB. | K9: CUST. MOB. E DESMOB. | L9: CUST. MOB. E DESMOB.
A10: 1.1 | C10: VEÍCULOS LEVES E CAMINHÕES COMUNS | F10: K (1 ou 2) | G10: FU | I10: CH | J10: CMob (PAV.) | K10: CMob (Rev. Prim.) | L10: CMob total
A11: SICRO
A12: E9592 | B12: Caminhão carroceria com capacidade de 15 t - 188 kW | D12: CHP | E12: 1 | F12: 1 | G12: 1 | I12: 286.24 | J12: 2223.13 | K12: 629.73 | L12: 2852.86 | M12: 9.966671325
A13: E9579 | B13: Caminhão basculante com capacidade de 10 m³ - 188 kW | D13: CHP | E13: 1 | F13: 1 | G13: 1 | I13: 309.2 | J13: 2401.45 | K13: 680.24 | L13: 3081.69 | M13: 9.966655886
A14: E9506 | B14: Caminhão basculante com capacidade de 6 m³ - 136 kW | D14: CHP | E14: 1 | F14: 1 | G14: 1 | I14: 196.59 | J14: 1526.85 | K14: 432.5 | L14: 1959.35 | M14: 9.966681927
A15: E9571 | B15: Caminhão tanque com capacidade de 10.000 l - 188 kW | D15: CHP | E15: 2 | F15: 1 | G15: 1 | I15: 352.95 | J15: 5482.49 | K15: 1552.98 | L15: 7035.47
A16: E9667 | B16: Caminhão basculante com capacidade de 14 m³ - 188 kW | D16: CHP | E16: 8 | F16: 1 | G16: 1 | I16: 314.24 | J16: 19524.78 | K16: 5530.62 | L16: 25055.4 | M16: 9.966665606
A17: E9509 | B17: Caminhão tanque distribuidor de asfalto com capacidade de 6.000 l - 7 kW/136 kW | D17: CHP | E17: 1 | F17: 1 | G17: 1 | I17: 281.6 | J17: 2187.09 | K17: 619.52 | L17: 2806.61 | M17: 9.96665483
A18: E9680 | B18: Caminhão tanque com capacidade de 13.000 l - 188 kW | D18: CHP | E18: 1 | F18: 1 | G18: 1 | I18: 355.46 | J18: 2760.74 | K18: 782.01 | L18: 3542.75 | M18: 9.966662916
A19: E9686 | B19: Caminhão carroceria com guindauto com capacidade de 20 t.m - 136 kW | D19: CHP | E19: 1 | F19: 1 | G19: 1 | I19: 323.94 | J19: 2515.93 | K19: 712.67 | L19: 3228.6 | M19: 9.966660493
A20: E9687 | B20: Caminhão carroceria com capacidade de 5 t - 115 kW | D20: CHP | E20: 1 | F20: 1 | G20: 1 | I20: 156.59 | J20: 1216.18 | K20: 344.5 | L20: 1560.68 | M20: 9.966664538
A21: E9644 | B21: Caminhão demarcador de faixas com sistema de pintura a frio - 28 kW/115 kW | D21: CHP | E21: 1 | F21: 1 | G21: 1 | I21: 389.74 | J21: 3026.98 | K21: 857.43 | L21: 3884.41 | M21: 9.966670088
A22: E9041 | B22: Caminhão carroceria com guindauto com capacidade de 45 t.m - 188 kW | D22: CHP | E22: 1 | F22: 1 | G22: 1 | I22: 427.37 | J22: 3319.24 | K22: 940.21 | L22: 4259.45 | M22: 9.966656527
A23: E9575 | B23: Caminhão basculante com caçamba estanque com capacidade de 14 m³ - 188 kW | D23: CHP | E23: 1 | F23: 1 | G23: 1 | I23: 314.24 | J23: 2440.6 | K23: 691.33 | L23: 3131.93 | M23: 9.966681517
A24: E9512 | B24: Veículo leve - 53 kW | D24: CHP | E24: 1 | F24: 1 | G24: 1 | I24: 55.3 | J24: 429.5 | K24: 121.66 | L24: 551.16 | M24: 9.966726944
A25: E9684 | B25: Veículo leve picape 4 x 4 com capacidade de 1,10 t - 147 kW | D25: CHP | E25: 1 | F25: 1 | G25: 1 | I25: 115.32 | J25: 895.65 | K25: 253.7 | L25: 1149.35 | M25: 9.966614638
C26: Dados Considerados | D26: UNID. | E26: QUANT. | F26: Custos de Mobilização e Desmobilização: CMob = ((DM x K x FU)/V) x CH
C27: Distância de Mobilização (Pavimentado) | D27: km | E27: 466
C28: Distância de Mobilização (Rev. Prim.) | D28: km | E28: 110 | F28: DNIT - Manual de Custos de ingraestrutura de Trasnportes - Volume 09 - Mobilização e Desmobilização - CGCIT
C29: Veloc. Média de Transp. (Pavimentado) | D29: km/h | E29: 60
C30: Veloc. Média de Transp. (Rev. Prim.) | D30: km/h | E30: 50 | K30: SUB-TOTAL 1.1 | L30: 64099.71
C31: MOBILIZAÇÃO | D31: UNID. | E31: QUANT. | F31: Fator Relacionado | G31: Fator de Utilização do Veículo | I31: Custo Horário do Veículo | J31: CUST. MOB. E DESMOB. | K31: CUST. MOB. E DESMOB. | L31: CUST. MOB. E DESMOB.
A32: 1.2 | C32: VEÍCULOS LEVES E CAMINHÕES COMUNS | F32: K (1 ou 2) | G32: FU | I32: CH | J32: Cmob (PAV.) | K32: Cmob (Rev. Prim.) | L32: Cmob total
A33: SICRO
A34: E9665 | B34: Cavalo mecânico com semirreboque com capacidade de 22 t - 240 kW | C34: Trator sobre esteiras com lâmina - 127 kW - E9540 | D34: CHP | E34: 1 | F34: 2 | G34: 0.5 | I34: 409.4723 | J34: 3180.23 | K34: 900.84 | L34: 4081.07 | M34: 9.966657085
C35: Motoniveladora - 93 kW - E9524 | D35: CHP | E35: 2 | F35: 2 | G35: 1 | I35: 409.4723 | J35: 6360.47 | K35: 1801.68 | L35: 8162.15 | M35: 9.966669296
C36: Carregadeira de pneus com capacidade de 1,72 m³ - 113 kW - E9584 | D36: CHP | E36: 2 | F36: 2 | G36: 0.5 | I36: 409.4723 | J36: 3180.23 | K36: 900.84 | L36: 4081.07 | M36: 4.983328543
C37: Escavadeira hidráulica com martelo hidráulico de 520 kg - 75 kW - E9127 | D37: CHP | E37: 1 | F37: 2 | G37: 1 | I37: 409.4723 | J37: 6360.47 | K37: 1801.68 | L37: 8162.15 | M37: 19.93333859
C38: Escavadeira hidráulica sobre esteiras com caçamba com capacidade de 1,56 m³ - 118 kW - E9515 | D38: CHP | E38: 1 | F38: 2 | G38: 1 | I38: 409.4723 | J38: 6360.47 | K38: 1801.68 | L38: 8162.15 | M38: 19.93333859
C39: Rolo compactador de pneus autopropelido de 27 t - 85 kW - E9762 | D39: CHP | E39: 2 | F39: 2 | G39: 1 | I39: 409.4723 | J39: 6360.47 | K39: 1801.68 | L39: 8162.15 | M39: 9.966669296
C40: Rolo compactador pé de carneiro vibratório autopropelido por pneus de 11,6 t - 82 kW - E9685 | D40: CHP | E40: 2 | F40: 2 | G40: 0.5 | I40: 409.4723 | J40: 3180.23 | K40: 900.84 | L40: 4081.07 | M40: 4.983328543
C41: Trator agrícola sobre pneus - 77 kW - E9577 | D41: CHP | E41: 2 | F41: 2 | G41: 0.5 | I41: 409.4723 | J41: 3180.23 | K41: 900.84 | L41: 4081.07 | M41: 4.983328543
C42: Trator sobre esteiras com lâmina - 259 kW - E9541 | D42: CHP | E42: 2 | F42: 2 | G42: 1 | I42: 409.4723 | J42: 6360.47 | K42: 1801.68 | L42: 8162.15 | M42: 9.966669296
C43: Tanque de estocagem de asfalto com capacidade de 30.000 l - E9558 | D43: CHP | E43: 1 | F43: 2 | G43: 1 | I43: 409.4723 | J43: 6360.47 | K43: 1801.68 | L43: 8162.15 | M43: 19.93333859
C44: Usina de asfalto a quente gravimétrica com capacidade de 100/140 t/h - 260 kW - E9689 | D44: CHP | E44: 1 | F44: 2 | G44: 4 | I44: 409.4723 | J44: 25441.88 | K44: 7206.71 | L44: 32648.59 | M44: 79.73332995
C45: Vibroacabadora de asfalto sobre esteiras - 82 kW - E9545 | D45: CHP | E45: 1 | F45: 2 | G45: 0.5 | I45: 409.4723 | J45: 3180.23 | K45: 900.84 | L45: 4081.07 | M45: 9.966657085
C46: Retroescavadeira de pneus - capacidade da caçamba da pá-carregadeira de 0,76 m³ e da - E9526 | D46: CHP | E46: 1 | F46: 2 | G46: 0.5 | I46: 409.4723 | J46: 3180.23 | K46: 900.84 | L46: 4081.07 | M46: 9.966657085
C47: Carregadeira de pneus com capacidade de 3,40 m³ - 195 kW - E9511 | D47: CHP | E47: 1 | F47: 2 | G47: 0.5 | I47: 409.4723 | J47: 3180.23 | K47: 900.84 | L47: 4081.07 | M47: 9.966657085
C48: Usina misturadora de solos com capacidade de 300 t/h - 44 kW - E9615 | D48: CHP | E48: 1 | F48: 2 | G48: 2 | I48: 409.4723 | J48: 12720.94 | K48: 3603.36 | L48: 16324.3 | M48: 39.86667718
C49: Distribuidor de agregados sobre pneus autopropelido - 130 kW - E9514 | D49: CHP | E49: 1 | F49: 2 | G49: 0.5 | I49: 409.4723 | J49: 3180.23 | K49: 900.84 | L49: 4081.07 | M49: 9.966657085
A50: Dados da Formula, onde: | J50: SUB-TOTAL 1.2 | L50: 130594.35 | M50: 274.0833018
A51: DM | B51: Representa a distância de mobilização, em quilômetros (km) | I51: TOTAL | L51: 194694.06 | S51: 360
A52: K | B52: Representa o fator relacionado à necessidade de retorno do veículo a sua origem 1 (não Retorna), 2 (retorna)
A53: FU | B53: Representa o fator de utilização do veículo transportador (Tabela 02 - Manual de Custos de instraetrutura de transporte - Volume 09 - Mobilização e Desmobilização - DNIT), | I53: TOTAL MOBILIZAÇÃO R$ | L53: 194694.06
A54: V | B54: Representa a velocidade média de transporte, em km/h - (Tabela 01 - Manual de Custos de instraetrutura de transporte - Volume 09 - Mobilização e Desmobilização - DNIT) | I54: DESMOBILIZAÇÃO = MOBILIZAÇÃO R$ | L54: 194694.06
A55: CH | B55: Representa o custo horário do veículo transportador (SICRO) | I55: TOTAL MOB. / DESMOB. | L55: 389388.12

Sheet Insumos Betuminosos
A2: CODEVASF – Companhia de Desenvolvimento do Vale do São Francisco
A3: OBJETO: COMPLEMENTAÇÃO DOS ESTUDOS PRELIMINARES E CONSOLIDAÇÃO DO PROJETO RODOVIÁRIO DO RAMAL DO MANGA, NO ESTADO DO AMAPÁ - CODESAFV
A4: LOCAL: OIAPOQUE-AP
A8: PLANILHA DE CÁLCULO DOS PREÇOS DOS INSUMOS BETUMINOSOS
A9: OBRA: | C9: PAVIMENTAÇÃO ASFÁLTICA NO RAMAL DO MANGA
A10: ENDEREÇO: | C10: MUNICÍPIO DO OIAPOQUE/AP
A11: REFINARIA: | C11: Petrobras LUBNOR - Refinaria Lubrificantes e Derivados do Nordeste
A12: METODOLOGIA DE CÁLCULO DE ACORDO COM A PORTARIA DNIT Nº 1078 DE 11 DE AGOSTO DE 2015
A13: DADOS DE ENTRADA
A14: UF - OBRA: | B14: AMAPÁ | C14: DATA-BASE: | F14: 2023-08-01 | K14: 18 | L14: ICMS
A16: CÁLCULO DO CUSTO UNITÁRIO DO INSUMO COM ICMS (CI)
A17: CI → custo unitário do insumo com ICMS (R$/kg) C → custo do produto sem ICMS (preço ANP) ICMS → Alíquota do ICMS na unidade federativa da obra
A18: CÁLCULO DO CUSTO DE TRANSPORTE (CT)
A19: ÍNDICE DE REAJUSTAMENTO | I19: jul/14 | J19: 2023-08-01 | K19: Ir
A20: Índice de Obras Rodoviárias - Pavimentação - Série | F20: 157972 | G20: - Col. 37 | I20: 270.237 | J20: 555.551 | K20: 2.033544629
A22: Natureza do Transporte | D22: Equações Tarifárias de Transporte | I22: D | J22: CD | K22: CT
A23: RP - Rodovia Pavimentada | D23: CD = (26,939 + 0,253 x D) / 1000 por Kg | I23: 1987 | J23: 0.52965 | K23: 1.313496235
A24: RRP - Rodovia em Revestim. Primário | D24: CD = (26,939 + 0,299 x D) / 1000 por Kg | I24: 110 | J24: 0.059829 | K24: 0.14837188
A25: RLN - Rodovia em Leito Natural | D25: CD = (26,939 + 0,412 x D) / 1000 por Kg
A26: TRASNPORTE FLUVIAL | D26: CD = (14,0630 + 0,1925 x D) / 1000 por Kg | I26: 505 | J26: 0.1112755 | K26: 0.2759557261
A27: TOTAL | I27: 2602 | J27: 0.7007545 | K27: 1.737823841
A28: (1) Equações Tafifárias conforme DNIT
A29: CD → Custo Direto do Transporte
A30: D → Distância de transporte entre a origem do material até a usina de asfalto
A31: CT → Custo total de transporte (R$/kg)
A32: Ir → índice de reajustamento entre o período jul/14 e a última data-base disponível
A33: CÁLCULO DO PREÇO DO INSUMO (SEM BDI)
A34: PI → Preço do insumo betuminoso sem BDI (R$/kg)
A35: *Para o custo por tonelada multiplicar o valor obtido por 1000
A36: INSUMOS
A37: SIGLA | B37: CM 30 | D37: INSUMO | E37: ASFALTOS DILUÍDOS CM-30
A38: ESTADO/ REGIÃO | B38: CUSTO (R$/Kg) | D38: REFINARIA | K38: TRANSPORTE | M38: PI (ton)
B39: C | C39: CI | D39: D (km) | E39: LOCALIZAÇÃO | K39: CD (R$/kg) | L39: CT (R$/kg)
A40: NORTE | B40: 4.04322 | C40: 4.930756098 | D40: 2602 | E40: Canteiro de Obra no Oiapoque-AP | K40: 0.6409255 | L40: 1.737823841 | M40: =Planilha2!W35 -> 6108.935999 | N40: **Usado como referência o Processo 3131/2023, pavimentação do município de Porto Grande/AP
N41: **Valor obtido usando a metodologia de cálculo que considera o menor valor entre o binário (preço do transporte e preço do material insumo asfáltico)
A42: SIGLA | B42: RR 1C | D42: INSUMO | E42: EMULSÕES ASFÁLTICAS RR-1C
A43: ESTADO/ REGIÃO | B43: CUSTO (R$/Kg) | D43: REFINARIA | K43: TRANSPORTE | M43: PI (ton)
B44: C | C44: CI | D44: D (km) | E44: LOCALIZAÇÃO | K44: CD (R$/kg) | L44: CT (R$/kg)
A45: NORTE | B45: 3.0677 | C45: 3.741097561 | D45: 2602 | E45: Canteiro de Obra no Oiapoque-AP | K45: 0.6409255 | L45: 1.737823841 | M45: =Planilha2!W42 -> 5059.938729 | N45: **Usado como referência o Processo 3131/2023, pavimentação do município de Porto Grande/AP
N46: **Valor obtido usando a metodologia de cálculo que considera o menor valor entre o binário (preço do transporte e preço do material insumo asfáltico)
A47: SIGLA | B47: CAP 50 70 | D47: INSUMO | E47: CIMENTOS ASFÁLTICOS CAP-50-70
A48: ESTADO/ REGIÃO | B48: CUSTO (R$/Kg) | D48: REFINARIA | K48: TRANSPORTE | M48: PI (ton)
B49: C | C49: CI | D49: D (km) | E49: LOCALIZAÇÃO | K49: CD (R$/kg) | L49: CT (R$/kg)
A50: NORTE | B50: 3.72358 | C50: 4.54095122 | D50: 2602 | E50: Canteiro de Obra no Oiapoque-AP | K50: 0.6409255 | L50: 1.737823841 | M50: =Planilha2!W17 -> 5735.17243 | N50: **Usado como referência o Processo 3131/2023, pavimentação do município de Porto Grande/AP
N51: **Valor obtido usando a metodologia de cálculo que considera o menor valor entre o binário (preço do transporte e preço do material insumo asfáltico)
A52: PREÇO FINAL A SER CONSIDERADO PARA O CÁLCULO DO BDI
A53: SIGLA | B53: INSUMO | J53: ESTADO | L53: VALOR / ton | M53: VALOR / Kg
A54: =B37 -> CM 30 | B54: =E37 -> ASFALTOS DILUÍDOS CM-30 | J54: AMAPÁ-AP | L54: =M40 -> 6108.935999 | M54: =L54/1000 -> 6.108935999
A55: =B42 -> RR 1C | B55: =E42 -> EMULSÕES ASFÁLTICAS RR-1C | J55: AMAPÁ-AP | L55: =M45 -> 5059.938729 | M55: =L55/1000 -> 5.059938729
A56: =B47 -> CAP 50 70 | B56: =E47 -> CIMENTOS ASFÁLTICOS CAP-50-70 | J56: AMAPÁ-AP | L56: =M50 -> 5735.17243 | M56: 5.73517243
A58: CÁLCULO DO PREÇO FINAL DO INSUMO (C/ BDI)
A60: BDI DA OBRA | E60: BDI INSUMOS BETUMINOSOS
A61: ONERADO: | E61: ONERADO:
A62: DESONERADO: | E62: DESONERADO:
A63: (*) BDI para insumos betuminosos =15% conforme Portaria do DNIT nº 1078 de 11 de agosto de 2015 (caso onerado)
A64: SIGLA | B64: INSUMO | G64: PREÇO FINAL (POR TONELADA) A CONSIDERAR NO ORÇAMENTO
G65: ESTADO | J65: ONERADO | L65: DESONERADO
A66: CM 30 | B66: ASFALTOS DILUÍDOS CM-30 | G66: AMAPÁ-AP | L66: =L54 -> 6108.935999
A67: RR 2C | B67: =B55 -> EMULSÕES ASFÁLTICAS RR-1C | G67: AMAPÁ-AP | L67: =L55 -> 5059.938729
A68: CAP 50 70 | B68: CIMENTOS ASFÁLTICOS CAP-50-70 | G68: AMAPÁ-AP | L68: 5735.17243

Sheet BDI - Material
B2: CODEVASF – Companhia de Desenvolvimento do Vale do São Francisco
B3: OBJETO: COMPLEMENTAÇÃO DOS ESTUDOS PRELIMINARES E CONSOLIDAÇÃO DO PROJETO RODOVIÁRIO DO RAMAL DO MANGA, NO ESTADO DO AMAPÁ - CODESAFV
B4: LOCAL: OIAPOQUE-AP
B7: DEMONSTRATIVO BDI
B9: Cálculo do BDI - CONSTRUÇÃO DE RODOVIAS
B11: Item | C11: 1º quartil | D11: 3º quartil | E11: Adotado | F11: Identificação
B12: AC | C12: 1.5 | D12: 4.49 | E12: 2.5 | F12: Administração Central
B13: S e G | C13: 0.3 | D13: 0.82 | E13: 0.5 | F13: Seguro e Garantia
B14: R | C14: 0.56 | D14: 0.89 | E14: 0.5 | F14: Risco
B15: DF | C15: 0.85 | D15: 1.11 | E15: 1 | F15: Despesas Financeiras
B16: L | C16: 3.5 | D16: 6.22 | E16: 6 | F16: Lucro
B17: T | E17: =C29 -> 3.65 | F17: Tributos *
D19: TOTAL | E19: =SUM(E12:E17)/100 -> 0.1415 | F19: BDI A SER ADOTADO
B21: Verificação: | C21: =E19 -> 0.1415 | D21: ← limite 11,10% a 16,80% - ACÓRDÃO Nº 2622/2013 - TCU
B24: * TRIBUTOS | C24: %
B25: PIS | C25: 0.65
B26: COFINS | C26: 3
B27: CPRB | C27: 0
B28: ISS | C28: 0
B29: Total | C29: 3.65
B31: Declaramos que, conforme legislação tributária municipal, a base de cálculo do ISS é de | K31: 1
B32: sobre o valor da obra e a alíquota do ISS aplicável no Município é de | H32: 0.05 | J32: ← (limitado a 5,00%)
B34: FÓRMULA
B36: BDI calculado pela expressão: BDI = { [ (1+AC+S+R+G) x (1+DF) x (1+L) / (1-T)] -1}
B40: DATA: OUTUBRO DE 2023

Sheet Planilha2
B11: ÍNDICE DE PAVIMENTAÇÃO DNIT | E11: TIPOLOGIA DO MATERIAL | G11: LIGANTE BETUMINOSO | K11: IMPOSTOS | L11: COFINS | M11: 0.0065 | N11: 0.0065
C12: DATA INICIAL | F12: 2014-07-01 | G12: ÍNDICE INICIAL | H12: 270.237 | L12: PIS | M12: 0.03 | N12: 0.03 | P12: LEGENDA
C13: DATA FINAL | F13: 2023-08-01 | G13: ÍNDICE FINAL | H13: 555.551 | L13: ICMS | M13: 0.18 | N13: 0.18 | P13: ENTRADA DE DADOS
B15: DATA-BASE | C15: PRODUTOS | D15: LOCALIDADES | H15: CUSTO ANP (R$/Kg) | J15: CUSTO ANP | K15: IMPOSTOS DO PRODUTO | L15: CUSTO DO PRODUTO COM IMPOSTOS | M15: DMT's | N15: DMT's | O15: CUSTO DO TRANSPORTE TOTAL | P15: ICMS | Q15: ATUALIZAÇÃO DO CUSTO DE TRANSPORTE | R15: CUSTO DO TRANSPORTE RODOVIA PAVIMENTADA COM IMPOSTOS E ATUALIZAÇÃO MONETÁRIA | S15: PEDÁGIO | U15: TOTAL TRANSPORTE | V15: TOTAL PRODUTO | W15: TOTAL GERAL
B16: 2023-08-01 | D16: REFINARIAS | E16: ENDEREÇO | F16: ORIGEM REFINARIAS / DISTRIBUIDORAS | G16: DESTINO | H16: ESTADO | I16: REGIÃO | J16: R$/t | K16: R$/t | L16: R$/t | M16: KM | N16: KM | O16: R$/t | P16: R$/t | Q16: R$/t | R16: R$/t | S16: CUSTO POR EIXO | T16: R$/t | U16: R$/t | V16: R$/t | W16: R$/t
B17: 1 | C17: CAP 50/70 | D17: Refinaria Abreu e Lima | E17: Rodovia PE 60, Km 10 - Ipojuca - PE CEP:55590-000 | F17: MANAUS-AM | G17: Oiapoque -AP | H17: 3.74317243 | I17: 3.723584547 | J17: 3743.17243 | K17: 1034.33 | L17: 4777.50243 | M17: 610 | N17: 1100 | O17: 381.99 | P17: 83.85 | Q17: 491.83 | R17: 957.67 | S17: 0 | T17: 0 | U17: 957.67 | V17: 4777.50243 | W17: 5735.17243 | X17: =C17 -> CAP 50/70
B18: 2 | D18: Refinaria Potiguar Clara Camarão | E18: Rodovia RN 221, KM 25 - Guamaré - RN CEP:59598-000 | F18: FORTALEZA - CE | G18: Oiapoque -AP | H18: 3.319560157 | I18: 3.362851888 | J18: 3319.560157 | K18: 917.27 | L18: 4236.830157 | M18: 2042 | N18: 515 | O18: 650.51 | P18: 142.79 | Q18: 837.55 | R18: 1630.85 | S18: 0 | T18: 0 | U18: 1630.85 | V18: 4236.830157 | W18: 5867.680157
B19: 3 | D19: Complexo Petroquímico do Rio de Janeiro (Comperj) | E19: Rodovia Estadual RJ-116 - Km 5,2 - Acesso A-1, s/n, Complemento Sambaetiba - Zona Urbana do 4º Distrito de Itaboraí - RJ CEP:24841-203 | F19: GUAMARÉ - RN | G19: Oiapoque -AP | H19: - | I19: 3.362851888 | J19: 3362.851888 | K19: 929.24 | L19: 4292.091888 | M19: 2447 | N19: 515 | O19: 752.97 | P19: 165.28 | Q19: 969.48 | R19: 1887.73 | S19: 0 | T19: 0 | U19: 1887.73 | V19: 4292.091888 | W19: 6179.821888
B20: 4 | F20: IPOJUCA - PE | G20: Oiapoque -AP | H20: - | I20: 3.362851888 | J20: 3362.851888 | K20: 929.24 | L20: 4292.091888 | M20: 2624 | N20: 515 | O20: 797.75 | P20: 175.11 | Q20: 1027.13 | R20: 1999.99 | S20: 0 | T20: 0 | U20: 1999.99 | V20: 4292.091888 | W20: 6292.081888
B21: 5 | F21: SÃO FRANCISCO DO CONDE - BA | G21: Oiapoque -AP | H21: 3.502745761 | I21: 3.362851888 | J21: 3502.745761 | K21: 967.89 | L21: 4470.635761 | M21: 2660 | N21: 515 | O21: 806.86 | P21: 177.11 | Q21: 1038.86 | R21: 2022.83 | S21: 19.8 | T21: 1.425367555 | U21: 2024.255368 | V21: 4470.635761 | W21: 6494.891128
B22: 6 | F22: BETIM - MG | G22: Oiapoque -AP | H22: 3.18358774 | I22: 3.135083935 | J22: 3183.58774 | K22: 879.7 | L22: 4063.28774 | M22: 3262 | N22: 515 | O22: 959.17 | P22: 210.54 | Q22: 1234.97 | R22: 2404.68 | S22: 707.4 | T22: 50.92449539 | U22: 2455.604495 | V22: 4063.28774 | W22: 6518.892235
B28: 1 | C28: CAP MODIF. C/ POLÍMERO 60/85 | D28: Refinaria Abreu e Lima | E28: Rodovia PE 60, Km 10 - Ipojuca - PE CEP:55590-000 | G28: Palmas - TO | H28: 2.261894948 | I28: 2.353413905 | J28: 2261.894948 | K28: 393.19 | L28: 2655.084948 | M28: 1181 | N28: 1181 | P28: 44.41 | Q28: 202.55 | S28: 102 | T28: 102 | U28: 674.69 | V28: 2655.084948 | W28: 3329.774948
B29: 2 | D29: Refinaria Potiguar Clara Camarão | E29: Rodovia RN 221, KM 25 - Guamaré - RN CEP:59598-000 | F29: UBERLANDIA - MG | G29: Palmas - TO | H29: 2.261894948 | I29: 2.353413905 | J29: 2261.894948 | K29: 393.19 | L29: 2655.084948 | M29: 1182 | N29: 1182 | P29: 44.45 | Q29: 202.71 | S29: 102 | T29: 102 | U29: 675.14 | V29: 2655.084948 | W29: 3330.224948
B30: 3 | D30: Complexo Petroquímico do Rio de Janeiro (Comperj) | E30: Rodovia Estadual RJ-116 - Km 5,2 - Acesso A-1, s/n, Complemento Sambaetiba - Zona Urbana do 4º Distrito de Itaboraí - RJ CEP:24841-203 | F30: GOIANIRA - GO | G30: Palmas - TO | I30: 2.555206955 | J30: 2555.206955 | K30: 444.18 | L30: 2999.386955 | M30: 814 | N30: 814 | P30: 31.75 | Q30: 144.81 | S30: 0 | T30: 0 | U30: 409.44 | V30: 2999.386955 | W30: 3408.826955
B31: 4 | F31: BRASÍLIA - DF | G31: Palmas - TO | I31: 2.555206955 | J31: 2555.206955 | K31: 444.18 | L31: 2999.386955 | M31: 822 | N31: 822 | P31: 32.03 | Q31: 146.07 | S31: 0 | T31: 0 | U31: 413 | V31: 2999.386955 | W31: 3412.386955
B32: 5 | F32: APARECIDA DE GOIANIA - GO | G32: Palmas - TO | I32: 2.555206955 | J32: 2555.206955 | K32: 444.18 | L32: 2999.386955 | M32: 842 | N32: 842 | P32: 32.72 | Q32: 149.22 | S32: 0 | T32: 0 | U32: 421.9 | V32: 2999.386955 | W32: 3421.286955
B33: 6 | F33: ANÁPOLIS - GO | G33: Palmas - TO | I33: 2.555206955 | J33: 2555.206955 | K33: 444.18 | L33: 2999.386955 | M33: 950 | N33: 950 | P33: 36.44 | Q33: 166.21 | S33: 0 | T33: 0 | U33: 469.93 | V33: 2999.386955 | W33: 3469.316955
B35: 1 | C35: CM-30 | D35: Refinaria Abreu e Lima | E35: Rodovia PE 60, Km 10 - Ipojuca - PE CEP:55590-000 | F35: MANAUS-AM | G35: Oiapoque -AP | H35: - | I35: 4.043215999 | J35: 4043.215999 | K35: 1117.24 | L35: 5160.455999 | M35: 610 | N35: 1100 | O35: 378.33 | P35: 83.04 | Q35: 487.11 | R35: 948.48 | S35: 0 | T35: 0 | U35: 948.48 | V35: 5160.455999 | W35: 6108.935999 | X35: =C35 -> CM-30
B36: 2 | D36: Refinaria Potiguar Clara Camarão | E36: Rodovia RN 221, KM 25 - Guamaré - RN CEP:59598-000 | F36: FORTALEZA - CE | G36: Oiapoque -AP | H36: 4.100901709 | I36: 4.100901709 | J36: 4100.901709 | K36: 1133.18 | L36: 5234.081709 | M36: 2042 | N36: 515 | O36: 646.85 | P36: 141.99 | Q36: 832.85 | R36: 1621.69 | S36: 0 | T36: 0 | U36: 1621.69 | V36: 5234.081709 | W36: 6855.771709
B37: 3 | D37: Complexo Petroquímico do Rio de Janeiro (Comperj) | E37: Rodovia Estadual RJ-116 - Km 5,2 - Acesso A-1, s/n, Complemento Sambaetiba - Zona Urbana do 4º Distrito de Itaboraí - RJ CEP:24841-203 | F37: GUAMARÉ - RN | G37: Oiapoque -AP | H37: - | I37: 4.100901709 | J37: 4100.901709 | K37: 1133.18 | L37: 5234.081709 | M37: 2447 | N37: 515 | O37: 749.31 | P37: 164.48 | Q37: 964.77 | R37: 1878.56 | S37: 0 | T37: 0 | U37: 1878.56 | V37: 5234.081709 | W37: 7112.641709
B38: 4 | F38: IPOJUCA - PE | G38: Oiapoque -AP | H38: - | I38: 4.100901709 | J38: 4100.901709 | K38: 1133.18 | L38: 5234.081709 | M38: 2624 | N38: 515 | O38: 794.09 | P38: 174.31 | Q38: 1022.42 | R38: 1990.82 | S38: 0 | T38: 0 | U38: 1990.82 | V38: 5234.081709 | W38: 7224.901709
B39: 5 | F39: SÃO FRANCISCO DO CONDE - BA | G39: Oiapoque -AP | H39: - | I39: 4.100901709 | J39: 4100.901709 | K39: 1133.18 | L39: 5234.081709 | M39: 2660 | N39: 515 | O39: 803.2 | P39: 176.31 | Q39: 1034.15 | R39: 2013.66 | S39: 19.8 | T39: 1.525210084 | U39: 2015.18521 | V39: 5234.081709 | W39: 7249.266919
B40: 6 | F40: BETIM - MG | G40: Oiapoque -AP | H40: - | I40: 3.964297949 | J40: 3964.297949 | K40: 1095.43 | L40: 5059.727949 | M40: 3262 | N40: 515 | O40: 955.51 | P40: 209.74 | Q40: 1230.26 | R40: 2395.51 | S40: 707.4 | T40: 54.49159664 | U40: 2450.001597 | V40: 5059.727949 | W40: 7509.729545
B42: 1 | C42: RR1-C | D42: Refinaria Abreu e Lima | E42: Rodovia PE 60, Km 10 - Ipojuca - PE CEP:55590-000 | F42: UBERLANDIA - MG | G42: Oiapoque -AP | H42: 2.219501166 | I42: 2.250431728 | J42: 2219.501166 | K42: 613.3 | L42: 2832.801166 | M42: 2910 | N42: 515 | O42: 866.45 | P42: 190.19 | Q42: 1115.59 | R42: 2172.23 | S42: 653.4 | T42: 54.90756303 | U42: 2227.137563 | V42: 2832.801166 | W42: 5059.938729 | X42: =C42 -> RR1-C
B43: 2 | D43: Refinaria Potiguar Clara Camarão | E43: Rodovia RN 221, KM 25 - Guamaré - RN CEP:59598-000 | F43: DUQUE DE CAXIAS - RJ | G43: Oiapoque -AP | H43: - | I43: 2.250431728 | J43: 2250.431728 | K43: 621.85 | L43: 2872.281728 | M43: 3670 | N43: 515 | O43: 1058.73 | P43: 232.4 | Q43: 1363.16 | R43: 2654.29 | S43: 1047.6 | T43: 88.03361345 | U43: 2742.323613 | V43: 2872.281728 | W43: 5614.605341
B44: 3 | D44: Complexo Petroquímico do Rio de Janeiro (Comperj) | E44: Rodovia Estadual RJ-116 - Km 5,2 - Acesso A-1, s/n, Complemento Sambaetiba - Zona Urbana do 4º Distrito de Itaboraí - RJ CEP:24841-203 | F44: SARZEDO - MG | G44: Oiapoque -AP | H44: 2.219501166 | I44: 2.250431728 | J44: 2219.501166 | K44: 613.3 | L44: 2832.801166 | M44: 3272 | N44: 515 | O44: 958.04 | P44: 210.3 | Q44: 1233.52 | R44: 2401.86 | S44: 707.4 | T44: 59.44537815 | U44: 2461.305378 | V44: 2832.801166 | W44: 5294.106544
B45: 4 | D45: Refinaria Abreu e Lima | E45: Rodovia PE 60, Km 10 - Ipojuca - PE CEP:55590-000 | F45: ANÁPOLIS - GO | G45: Oiapoque -AP | H45: 2.656946007 | I45: 2.746729147 | J45: 2656.946007 | K45: 734.18 | L45: 3391.126007 | M45: 2520 | N45: 515 | O45: 767.78 | P45: 168.53 | Q45: 988.54 | R45: 1924.85 | S45: 490.2 | T45: 41.19327731 | U45: 1966.043277 | V45: 3391.126007 | W45: 5357.169284
B46: 5 | D46: Refinaria Potiguar Clara Camarão | E46: Rodovia RN 221, KM 25 - Guamaré - RN CEP:59598-000 | F46: GOIANIRA - GO | G46: Oiapoque -AP | H46: 2.656946007 | I46: 2.746729147 | J46: 2656.946007 | K46: 734.18 | L46: 3391.126007 | M46: 2550 | N46: 515 | O46: 775.37 | P46: 170.2 | Q46: 998.32 | R46: 1943.89 | S46: 490.2 | T46: 41.19327731 | U46: 1985.083277 | V46: 3391.126007 | W46: 5376.209284
B47: 6 | D47: Complexo Petroquímico do Rio de Janeiro (Comperj) | E47: Rodovia Estadual RJ-116 - Km 5,2 - Acesso A-1, s/n, Complemento Sambaetiba - Zona Urbana do 4º Distrito de Itaboraí - RJ CEP:24841-203 | F47: APARECIDA DE GOIANIA - GO | G47: Oiapoque -AP | H47: 2.656946007 | I47: 2.746729147 | J47: 2656.946007 | K47: 734.18 | L47: 3391.126007 | M47: 2574 | N47: 515 | O47: 781.44 | P47: 171.53 | Q47: 1006.13 | R47: 1959.1 | S47: 490.2 | T47: 41.19327731 | U47: 2000.293277 | V47: 3391.126007 | W47: 5391.419284

Sheet BDI - Padrão
B2: CODEVASF – Companhia de Desenvolvimento do Vale do São Francisco
B3: OBJETO: COMPLEMENTAÇÃO DOS ESTUDOS PRELIMINARES E CONSOLIDAÇÃO DO PROJETO RODOVIÁRIO DO RAMAL DO MANGA, NO ESTADO DO AMAPÁ - CODESAFV
B4: LOCAL: OIAPOQUE-AP
B7: QUADRO DE COMPOSIÇÃO DA TAXA DE BDI
B9: Cálculo do BDI - CONSTRUÇÃO DE RODOVIAS
B11: Item | C11: 1º quartil | D11: 3º quartil | E11: Adotado | F11: Identificação
B12: AC | C12: 3.8 | D12: 4.67 | E12: 3.8 | F12: Administração Central
B13: S e G | C13: 0.32 | D13: 0.74 | E13: 0.32 | F13: Seguro e Garantia
B14: R | C14: 0.5 | D14: 0.97 | E14: 0.5 | F14: Risco
B15: DF | C15: 1.02 | D15: 1.21 | E15: 1.02 | F15: Despesas Financeiras
B16: L | C16: 6.64 | D16: 8.69 | E16: 6.64 | F16: Lucro
B17: T | E17: =C29 -> 8.65 | F17: Tributos *
D19: TOTAL | E19: =SUM(E12:E17)/100 -> 0.2093 | F19: BDI A SER ADOTADO
B20: Verificação: | C20: =E19 -> 0.2093 | D20: ← limite 19,60% a 24,23% - ACÓRDÃO Nº 2622/2013 - TCU
B23: * TRIBUTOS | C23: %
B24: PIS | C24: 0.65
B25: COFINS | C25: 3
B26: CPRB | C26: 0
B27: ISS | C27: 5
B28: FE | C28: 0
B29: Total | C29: 8.65
B30: Declaramos que, conforme legislação tributária municipal, a base de cálculo do ISS é de | K30: 1
B31: sobre o valor da obra e a alíquota do ISS aplicável no Município é de | H31: 0.05 | J31: ← (limitado a 5,00%)
B33: FÓRMULA
B35: BDI calculado pela expressão: BDI = { [ (1+AC+S+R+G) x (1+DF) x (1+L) / (1-T)] -1}
